{"text_format":"1","workbook":"xlsx","n_sheets":3,"sheets":["Календарь","Задания","Праздники"],"not_rendered":{"charts":0,"images":1,"macros":1,"external_links":0,"defined_names":6,"comments":0,"pivot_tables":0},"unopened":[],"bounds":{"document_bytes":16777216,"sheet_cells":100000,"rows_first":2000,"rows_last":500,"rows_between":2000,"halvings":0,"cell_chars":16384,"cell_head_chars":4096},"cells_cut":0,"cells_raw":0,"read":"whole","date_system":"1900"}

{"sheet":"Календарь","index":0,"n_rows":1012,"n_cols":12,"rows_kept":1012,"cut":false,"hidden":false,"merged":[[12,3,12,5],[5,9,6,9]]}
["Сегодня",{"$f":"TODAY()","v":"2021-12-07"}]
[{"$f":"DATE(YEAR(TODAY()),MONTH(TODAY())+B2-12,1)","v":"2022-01-01"},13]
["Выберите дату","Пн","Вт","Ср","Чт","Пт","Сб","Вс"]
[null,{"$f":"IF(MONTH(Календарь)=MONTH($A$2),Календарь,\"\")","v":""},"","","","","2022-01-01","2022-01-02"]
[null,"2022-01-03","2022-01-04","2022-01-05","2022-01-06","2022-01-07","2022-01-08","2022-01-09"]
[null,"2022-01-10","2022-01-11","2022-01-12","2022-01-13","2022-01-14","2022-01-15","2022-01-16",null,{"$f":"A2","v":"2022-01-01"}]
[null,"2022-01-17","2022-01-18","2022-01-19","2022-01-20","2022-01-21","2022-01-22","2022-01-23"]
[null,"2022-01-24","2022-01-25","2022-01-26","2022-01-27","2022-01-28","2022-01-29","2022-01-30"]
["Выбрать мес","2022-01-31","","","","","",""]
[null,null,null,null,null,null,null,null,null,"Дата","Дата","Задания на "]
[{"$f":"DATE(YEAR(TODAY()),MONTH(TODAY())+B2-11,1)","v":"2022-02-01"},null,null,null,null,null,null,null,null,">=44562","<44593"]
[]
["Выбранный месяц",null,null,{"$f":"A2","v":"2022-01-01"},null,null,null,null,null,"Дата","Задания на "]
[null,null,null,null,null,null,null,null,null,{"$f":"IF(INDIRECT(\"Задания!A\"&ROW()-12,TRUE)<>0,INDIRECT(\"Задания!A\"&ROW()-12,TRUE),\"\")","v":"2022-01-01"},{"$f":"IF(INDIRECT(\"Задания!B\"&ROW()-12,TRUE)<>0,INDIRECT(\"Задания!B\"&ROW()-12,TRUE),\"\")","v":"Изменение в работе! С 1 января 2022 года ФСС напрямую будет выплачивать сотрудникам больничные и другие пособия,  закон от 30.04.2021 № 126-ФЗ"}]
[null,null,null,null,null,null,null,null,null,{"$f":"IF(INDIRECT(\"Задания!A\"&ROW()-12,TRUE)<>0,INDIRECT(\"Задания!A\"&ROW()-12,TRUE),\"\")","v":"2022-01-10"},{"$f":"IF(INDIRECT(\"Задания!B\"&ROW()-12,TRUE)<>0,INDIRECT(\"Задания!B\"&ROW()-12,TRUE),\"\")","v":"Последний день, чтобы сдать отчет  П-4 (НЗ) за IV квартал 2021 года в Росстат. Отчет сдают организации, в которых работает более 15 человек. Форма отчета — Приложение 12 к приказу Росстата от 24.07.2020 № 412"}]
[null,null,null,null,null,null,null,null,null,"2022-01-10","Последний день, чтобы сдать отчет 3-Ф за декабрь 2021 года  в Росстат. Отчет сдают организации с задолженностью по зарплате. Форма отчета — Приложение 6 к приказу Росстата от 24.07.2020 № 412"]
[null,null,null,null,null,null,null,null,null,"2022-01-10","Последний день, чтобы сдать отчет 1-ПР за декабрь 2021 года  в Росстат. Отчет сдают организации, в которых в отчетном месяце были забастовки. Форма отчета — Приложение 5 к приказу Росстата от 24.07.2020 № 412"]
[null,null,null,null,null,null,null,null,null,"2022-01-10","Последний день, чтобы сдать отчет ЗП-образование за IV квартал 2021 года  в Росстат. Отчет сдают Государственные и муниципальные образовательные организации. Форма отчета — Приложение 9 к приказу Росстата от 24.07.2020 № 412"]
[null,null,null,null,null,null,null,null,null,"2022-01-10","Последний день, чтобы сдать отчет ЗП-наука за IV квартал 2021 года в Росстат. Отчет сдают Государственные и муниципальные учреждения, которые занимаются научными исследованиями и разработками. Форма отчета — Приложение 10 к приказу Росстата от 24.07.2020 № 412"]
[null,null,null,null,null,null,null,null,null,"2022-01-10","Последний день чтобы сдать отчет ЗП-здрав за IV квартал 2021 года  в Росстат. Отчет сдают Государственные и муниципальные учреждения, которые работают в сфере здравоохранения. Форма отчета Приложение 7 к приказу Росстата от 24.07.2020 № 412"]
[null,null,null,null,null,null,null,null,null,"2022-01-10","Последний день, чтобы сдать отчет ЗП-соц за IV квартал 2021 года в Росстат. Отчет сдают Государственные и муниципальные учреждения, которые работают  в сфере социального обслуживания. Форма отчета — Приложение 11 к приказу Росстата от 24.07.2020 № 412"]
[null,null,null,null,null,null,null,null,null,"2022-01-10","Последний день, чтобы сдать отчет ЗП-культура за IV квартал 2021 года в Росстат. Отчет сдают Государственные и муниципальные учреждения, которые работают в сфере культуры и искусства. Форма отчета — Приложение 8 к приказу Росстата от 24.07.2020 № 412"]
[null,null,null,null,null,null,null,null,null,"2022-01-10","Сдать отчет о наличии вакансий в службу занятости. Отчет сдают все организации. Форма отчета и даты отличаются в регионах "]
[null,null,null,null,null,null,null,null,null,"2022-01-10","Сдать отчет о квотируемых местах для инвалидов в службу занятости. Отчет сдают организации, которые обязаны квотировать рабочие места. Форма отчета и даты отличаются в регионах "]
[null,null,null,null,null,null,null,null,null,"2022-01-17","Последний день, чтобы сдать отчет П-4 за IV квартал 2021 года в Росстат. Отчет сдают организации, в которых работает менее 15 человек и годовой оборот которых менее 800 млн руб. Форма отчета — Приложение 3 к приказу Росстата от 24.07.2020 № 412"]
[null,null,null,null,null,null,null,null,null,"2022-01-17","Последний день, чтобы сдать отчет  П-4 за декабрь 2021 года в Росстат. Отчет сдают организации, в которых работает более 15 человек и годовой оборот которых более 800 млн руб.. Форма отчета — Приложение 3 к приказу Росстата от 24.07.2020 № 412"]
[null,null,null,null,null,null,null,null,null,"2022-01-17","Последний день, чтобы сдать отчет  СЗВ-М за декабрь 2021 года в ПФР. Отчет сдают все организации. Форма отчета — постановление Правления ПФР от 15.04.2021 № 103п"]
[null,null,null,null,null,null,null,null,null,"2022-01-17","Последний день, чтобы сдать отчет  СЗВ-ТД за декабрь 2021 года в ПФР. Отчет сдают все организации, в которых были кадровые мероприятия в отчетном месяце. О приемах и увольнениях отчитываться нужно не позднее следующего рабочего дня после даты, когда издали приказ. Форма отчета — Постановление Правления Пенсионного фонда от 25.12.2019 № 730п"]
[null,null,null,null,null,null,null,null,null,"2022-01-21","Последний день, чтобы сдать отчет  1-Т (условия труда) за 2021 год в Росстат. Отчет сдают организации, которые попали в выборку Росстата. Проверить, нужно ли сдавать отчет, можно на сайте службы. Форма отчета — Приложение 1 к Приказу Росстата от 30.07.2021 № 457"]
[null,null,null,null,null,null,null,null,null,"2022-01-25","Последний день, чтобы сдать отчет 7-травматизм за 2021 год  в Росстат. Отчет сдают все, кроме малого бизнеса и представителей определенных видов деятельности. Форма отчета — Приложение к Приказу Росстата от 22.06.2020 № 326"]
[null,null,null,null,null,null,null,null,null,"2022-01-31","Последний день, чтобы сдать № 1-Т «Сведения о численности и заработной плате работников» за 2021 год в Росстат. Отчет сдают организации, в которых работает более 15 человек и годовой оборот которых более 800 млн руб.. Форма отчета — Приложение 2 к Приказу Росстата от 30.07.2021 № 457"]
[null,null,null,null,null,null,null,null,null,"2022-02-01","Сдать отчет о наличии вакансий в службу занятости. Отчет сдают все организации. Форма отчета и даты отличаются в регионах "]
[null,null,null,null,null,null,null,null,null,"2022-02-01","Сдать отчет о квотируемых местах для инвалидов в службу занятости. Отчет сдают организации, которые обязаны квотировать рабочие места. Форма отчета и даты отличаются в регионах "]
[null,null,null,null,null,null,null,null,null,"2022-02-02","Последний день, чтобы сдать отчет 1-ПР за январь 2022 года в Росстат. Отчет сдают организации, в которых в отчетном месяце были забастовки. Форма отчета — Приложение 7 к Приказу Росстата от 30.07.2021 № 457"]
[null,null,null,null,null,null,null,null,null,"2022-02-02","Последний день, чтобы сдать отчет 3-Ф за январь 2022 года  в Росстат. Отчет сдают организации с задолженностью по зарплате. Форма отчета — Приложение 8 к Приказу Росстата от 30.07.2021 № 457"]
[null,null,null,null,null,null,null,null,null,"2022-02-03","Последний день, чтобы сдать отчет 1-кадры в Росстат. Отчет сдают раз в 3-4 года все, кроме малого бизнеса и представителей определенных видов деятельности. Узнать, должна ли ваша организация сдавать отчет в текущем году, можно на сайте Росстата. Форма отчета — Приложение 14 к приказу Росстата от 24.07.2020 № 412"]
[null,null,null,null,null,null,null,null,null,"2022-02-15","Последний день, чтобы сдать отчет П-4 за январь 2022 года в Росстат. Отчет сдают организации, в которых работает более 15 человек и годовой оборот которых более 800 млн руб. Форма отчета — Приложение 15 к Приказу Росстата от 30.07.2021 № 457"]
[null,null,null,null,null,null,null,null,null,"2022-02-15","Последний день, чтобы сдать отчет СЗВ-М за январь 2022 года в ПФР. Отчет сдают все организации. Форма отчета — постановление Правления ПФР от 15.04.2021 № 103п"]
[null,null,null,null,null,null,null,null,null,"2022-02-15","Последний день, чтобы сдать отчет СЗВ-ТД за январь 2022 года в ПФР. Отчет сдают все организации, в которых были кадровые мероприятия в отчетном месяце. О приемах и увольнениях отчитываться нужно не позднее следующего рабочего дня после даты, когда издали приказ. Форма отчета — Постановление Правления Пенсионного фонда от 25.12.2019 № 730п"]
[null,null,null,null,null,null,null,null,null,"2022-02-22","Сократите на час рабочий день, статья 95 ТК"]
[null,null,null,null,null,null,null,null,null,"2022-03-01","Сдать отчет о наличии вакансий в службу занятости. Отчет сдают все организации. Форма отчета и даты отличаются в регионах "]
[null,null,null,null,null,null,null,null,null,"2022-03-01","Сдать отчет о квотируемых местах для инвалидов в службу занятости. Отчет сдают организации, которые обязаны квотировать рабочие места. Форма отчета и даты отличаются в регионах "]
[null,null,null,null,null,null,null,null,null,"2022-03-01","Последний день, чтобы сдать отчет 1-Т(ГС) за 2021 год в Росстат. Отчет сдают государственные органы. Форма отчета — Приложение 3 к Приказу Росстата от 30.07.2021 № 457"]
[null,null,null,null,null,null,null,null,null,"2022-03-01","Последний день, чтобы сдать отчет 1-Т(МС) за 2021 год в Росстат. Отчет сдают Органы местного самоуправления. Форма отчета — Приложение 4 к Приказу Росстата от 30.07.2021 № 457"]
[null,null,null,null,null,null,null,null,null,"2022-03-01","Последний день, чтобы сдать отчет СЗВ-СТАЖ за 2021 год в ПФР. Отчет сдают все организации, в которых были кадровые мероприятия в отчетном месяце. О приемах и увольнениях отчитываться нужно не позднее следующего рабочего дня после даты, когда издали приказ. Форма отчета — Постановление ПФР от 06.12.2018 № 507п"]
[null,null,null,null,null,null,null,null,null,"2022-03-02","Последний день, чтобы сдать отчет 1-ПР за февраль 2022 года в Росстат. Отчет сдают организации, в которых в отчетном месяце были забастовки. Форма отчета — Приложение 7 к Приказу Росстата от 30.07.2021 № 457"]
[null,null,null,null,null,null,null,null,null,"2022-03-02","Последний день, чтобы сдать отчет 3-Ф за февраль 2022 года в Росстат. Отчет сдают организации с задолженностью по зарплате. Форма отчета — Приложение 8 к Приказу Росстата от 30.07.2021 № 457"]
[null,null,null,null,null,null,null,null,null,"2022-03-05","Не забудьте выйти на работу и сократите на час рабочий день, статья 95 ТК, Постановление Правительства от 16.09.2021 № 1564"]
[null,null,null,null,null,null,null,null,null,"2022-03-15","Последний день, чтобы сдать отчет  П-4 за февраль 2022 года в Росстат. Отчет сдают организации, в которых работает более 15 человек и годовой оборот которых более 800 млн руб. Форма отчета — Приложение 15 к Приказу Росстата от 30.07.2021 № 457"]
[null,null,null,null,null,null,null,null,null,"2022-03-15","Последний день, чтобы сдать отчет СЗВ-М за февраль 2022 года в ПФР. Отчет сдают все организации. Форма отчета — постановлением Правления ПФР от 15.04.2021 № 103п"]
[null,null,null,null,null,null,null,null,null,"2022-03-15","Последний день, чтобы сдать отчет СЗВ-ТД за февраль 2022 года в ПФР. Отчет сдают все организации, в которых были кадровые мероприятия в отчетном месяце. О приемах и увольнениях отчитываться нужно не позднее следующего рабочего дня после даты, когда издали приказ. Форма отчета — Постановление Правления Пенсионного фонда от 25.12.2019 № 730п"]
[null,null,null,null,null,null,null,null,null,"2022-04-04","Сдать отчет о наличии вакансий в службу занятости. Отчет сдают все организации. Форма отчета и даты отличаются в регионах "]
[null,null,null,null,null,null,null,null,null,"2022-04-04","Сдать отчет о квотируемых местах для инвалидов в службу занятости. Отчет сдают организации, которые обязаны квотировать рабочие места. Форма отчета и даты отличаются в регионах "]
[null,null,null,null,null,null,null,null,null,"2022-04-04","Последний день, чтобы сдать отчет 1-ПР за март 2022 года  в Росстат. Отчет сдаю организации, в которых в отчетном месяце были забастовки. Форма отчета — Приложение 7 к Приказу Росстата от 30.07.2021 № 457"]
[null,null,null,null,null,null,null,null,null,"2022-04-04","Последний день, чтобы сдать отчет 3-Ф март 2022 года  в Росстат. Отчет сдают организации с задолженностью по зарплате. Форма отчета — Приложение 8 к Приказу Росстата от 30.07.2021 № 457"]
[null,null,null,null,null,null,null,null,null,"2022-04-08","Последний день, чтобы сдать отчет П-4 (НЗ) за I квартал 2022 года в Росстат. Отчет сдают организации, в которых работает более 15 человек. Форма отчета — Приложение 14 к Приказу Росстата от 30.07.2021 № 457"]
[null,null,null,null,null,null,null,null,null,"2022-04-11","Последний день, чтобы сдать отчет ЗП-образование за I квартал 2022 года в Росстат. Отчет сдают Государственные и муниципальные образовательные организации. Форма отчета — Приложение 11 к Приказу Росстата от 30.07.2021 № 457"]
[null,null,null,null,null,null,null,null,null,"2022-04-11","Последний день, чтобы сдать отчет ЗП-наука за I квартал 2022 года в Росстат. Отчет сдают Государственные и муниципальные учреждения, которые занимаются научными исследованиями и разработками. Форма отчета — Приложение 12 к Приказу Росстата от 30.07.2021 № 457"]
[null,null,null,null,null,null,null,null,null,"2022-04-11","Последний день, чтобы сдать отчет ЗП-здрав за I квартал 2022 года  в Росстат. Отчет сдают Государственные и муниципальные учреждения, которые работают в сфере здравоохранения. Форма отчета — Приложение 7 к приказу Росстата от 24.07.2020 № 412"]
[null,null,null,null,null,null,null,null,null,"2022-04-11","Последний день, чтобы сдать отчет ЗП-соц за I квартал 2022 года  в Росстат. Отчет сдают  Государственные и муниципальные учреждения, которые работают  в сфере социального обслуживания. Форма отчета — Приложение 11 к приказу Росстата от 24.07.2020 № 412"]
[null,null,null,null,null,null,null,null,null,"2022-04-11","Последний день, чтобы сдать отчет ЗП-культура за I квартал 2022 года в Росстат. Отчет сдают Государственные и муниципальные учреждения, которые работают в сфере культуры и искусства. Форма отчета — Приложение 8 к приказу Росстата от 24.07.2020 № 412"]
[null,null,null,null,null,null,null,null,null,"2022-04-15","Последний день, чтобы сдать отчет  П-4 за март 2022 года в Росстат. Отчет сдают организации, в которых работает более 15 человек и годовой оборот которых более 800 млн руб. Форма отчета — Приложение 15 к Приказу Росстата от 30.07.2021 № 457"]
[null,null,null,null,null,null,null,null,null,"2022-04-15","Последний день, чтобы сдать отчет П-4 за I квартал 2022 года в Росстат. Отчет сдают организации, в которых работает менее 15 человек и годовой оборот которых менее 800 млн руб. Форма отчета — Приложение 15 к Приказу Росстата от 30.07.2021 № 457"]
[null,null,null,null,null,null,null,null,null,"2022-04-15","Последний день, чтобы сдать отчет СЗВ-М за март 2022 года в ПФР. Отчет сдают все организации. Форма отчета — постановление Правления ПФР от 15.04.2021 № 103п"]
[null,null,null,null,null,null,null,null,null,"2022-04-15","Последний день, чтобы сдать отчет СЗВ-ТД за  март 2022 года в ПФР. Отчет сдают все организации, в которых были кадровые мероприятия в отчетном месяце. О приемах и увольнениях отчитываться нужно не позднее следующего рабочего дня после даты, когда издали приказ. Форма отчета — Постановление Правления Пенсионного фонда от 25.12.2019 № 730п"]
[null,null,null,null,null,null,null,null,null,"2022-05-04","Сдать отчет о наличии вакансий в службу занятости. Отчет сдают все организации. Форма отчета и даты отличаются в регионах "]
[null,null,null,null,null,null,null,null,null,"2022-05-04","Сдать отчет о квотируемых местах для инвалидов в службу занятости. Отчет сдают организации, которые обязаны квотировать рабочие места. Форма отчета и даты отличаются в регионах "]
[null,null,null,null,null,null,null,null,null,"2022-05-04","Последний день, чтобы сдать отчет 1-ПР за апрель 2022 года в Росстат. Отчет сдают организации, в которых в отчетном месяце были забастовки. Форма отчета — Приложение 7 к Приказу Росстата от 30.07.2021 № 457"]
[null,null,null,null,null,null,null,null,null,"2022-05-04","Последний день, чтобы сдать отчет 3-Ф за апрель 2022 года в Росстат. Отчет сдают организации с задолженностью по зарплате. Форма отчета — Приложение 8 к Приказу Росстата от 30.07.2021 № 457"]
[null,null,null,null,null,null,null,null,null,"2022-05-16","Последний день, чтобы сдать отчет П-4 за апрель 2022 года в Росстат. Отчет сдают организации, в которых работает более 15 человек и годовой оборот которых более 800 млн руб. Форма отчета — Приложение 15 к Приказу Росстата от 30.07.2021 № 457"]
[null,null,null,null,null,null,null,null,null,"2022-05-16","Последний день, чтобы сдать отчет  СЗВ-М за апрель 2022 года в ПФР. Отчет сдают все организации. Форма отчета — постановление Правления ПФР от 15.04.2021 № 103п"]
[null,null,null,null,null,null,null,null,null,"2022-05-16","Последний день, чтобы сдать отчет СЗВ-ТД за апрель 2022 года в ПФР. Отчет сдают все организации, в которых были кадровые мероприятия в отчетном месяце. О приемах и увольнениях отчитываться нужно не позднее следующего рабочего дня после даты, когда издали приказ. Форма отчета — Постановление Правления Пенсионного фонда от 25.12.2019 № 730п"]
[null,null,null,null,null,null,null,null,null,"2022-05-23","Последний день, чтобы сдать отчет 1 (рабочая сила)  в Росстат. Отчет сдают организации, которые занимаются определенной деятельностью. Подробный список есть на титульном листе отчета. Форма отчета — Приложение 6 к Приказу Росстата от 30.07.2021 № 457"]
[null,null,null,null,null,null,null,null,null,"2022-06-01","Сдать отчет о наличии вакансий в службу занятости. Отчет сдают все организации. Форма отчета и даты отличаются в регионах "]
[null,null,null,null,null,null,null,null,null,"2022-06-01","Сдать отчет о квотируемых местах для инвалидов в службу занятости. Отчет сдают организации, которые обязаны квотировать рабочие места. Форма отчета и даты отличаются в регионах "]
[null,null,null,null,null,null,null,null,null,"2022-06-02","Последний день, чтобы сдать отчет 1-ПР за май 2022 года в Росстат. Отчет сдают организации, в которых в отчетном месяце были забастовки. Форма отчета — Приложение 7 к Приказу Росстата от 30.07.2021 № 457"]
[null,null,null,null,null,null,null,null,null,"2022-06-02","Последний день, чтобы сдать отчет 3-Ф за май 2022 года  в Росстат. Отчет сдают организации с задолженностью по зарплате. Форма отчета — Приложение 8 к Приказу Росстата от 30.07.2021 № 457"]
[null,null,null,null,null,null,null,null,null,"2022-06-15","Последний день, чтобы сдать отчет П-4 за май 2022 года в Росстат. Отчет сдают организации, в которых работает более 15 человек и годовой оборот которых более 800 млн руб. Форма отчета — Приложение 15 к Приказу Росстата от 30.07.2021 № 457"]
[null,null,null,null,null,null,null,null,null,{"$f":"IF(INDIRECT(\"Задания!A\"&ROW()-12,TRUE)<>0,INDIRECT(\"Задания!A\"&ROW()-12,TRUE),\"\")","v":"2022-06-15"},{"$f":"IF(INDIRECT(\"Задания!B\"&ROW()-12,TRUE)<>0,INDIRECT(\"Задания!B\"&ROW()-12,TRUE),\"\")","v":"Последний день, чтобы сдать отчет  СЗВ-М за май 2022 года в ПФР. Отчет сдают все организации. Форма отчета — постановление Правления ПФР от 15.04.2021 № 103п"}]
[null,null,null,null,null,null,null,null,null,"2022-06-15","Последний день, чтобы сдать отчет СЗВ-ТД за май 2022 года в ПФР. Отчет сдают все организации, в которых были кадровые мероприятия в отчетном месяце. О приемах и увольнениях отчитываться нужно не позднее следующего рабочего дня после даты, когда издали приказ. Форма отчета — Постановление Правления Пенсионного фонда от 25.12.2019 № 730п"]
[null,null,null,null,null,null,null,null,null,"2022-07-01","Сдать отчет о наличии вакансий в службу занятости. Отчет сдают все организации. Форма отчета и даты отличаются в регионах "]
[null,null,null,null,null,null,null,null,null,"2022-07-01","Сдать отчет о квотируемых местах для инвалидов в службу занятости. Отчет сдают организации, которые обязаны квотировать рабочие места. Форма отчета и даты отличаются в регионах "]
[null,null,null,null,null,null,null,null,null,"2022-07-04","Последний день, чтобы сдать отчет 1-ПР за июнь 2022 года  в Росстат. Отчет сдают организации, в которых в отчетном месяце были забастовки. Форма отчета — Приложение 7 к Приказу Росстата от 30.07.2021 № 457"]
[null,null,null,null,null,null,null,null,null,"2022-07-04","Последний день, чтобы сдать отчет 3-Ф за июнь 2022 года  в Росстат. Отчет сдают организации с задолженностью по зарплате. Форма отчета — Приложение 8 к Приказу Росстата от 30.07.2021 № 457"]
[null,null,null,null,null,null,null,null,null,"2022-07-08","Последний день, чтобы сдать отчет П-4 за II квартал 2022 года  в Росстат. Отчет сдают организации, в которых работает менее 15 человек и годовой оборот которых менее 800 млн руб. Форма отчета Приложение 15 к Приказу Росстата от 30.07.2021 № 457"]
[null,null,null,null,null,null,null,null,null,"2022-07-11","Последний день, чтобы сдать отчет ЗП-образование за II квартал 2022 года в Росстат. Отчет сдают Государственные и муниципальные образовательные организации. Форма отчета — Приложение 11 к Приказу Росстата от 30.07.2021 № 457"]
[null,null,null,null,null,null,null,null,null,"2022-07-11","Последний день, чтобы сдать отчет ЗП-наука за II  квартал 2022 года  в Росстат. Отчет сдают Государственные и муниципальные учреждения, которые занимаются научными исследованиями и разработками. Форма отчета — Приложение 12 к Приказу Росстата от 30.07.2021 № 457"]
[null,null,null,null,null,null,null,null,null,"2022-07-11","Последний день, чтобы сдать отчет ЗП-здрав за II квартал 2022 года в Росстат. Отчет сдают Государственные и муниципальные учреждения, которые работают в сфере здравоохранения. Форма отчета — Приложение 7 к приказу Росстата от 24.07.2020 № 412"]
[null,null,null,null,null,null,null,null,null,"2022-07-11","Последний день, чтобы сдать отчет ЗП-соц за II квартал 2022 года в Росстат. Отчет сдают организации Государственные и муниципальные учреждения, которые работают  в сфере социального обслуживания. Форма отчета — Приложение 11 к приказу Росстата от 24.07.2020 № 412"]
[null,null,null,null,null,null,null,null,null,"2022-07-11","Последний день, чтобы сдать отчет ЗП-культура за II квартал 2022 года в Росстат. Отчет сдают  Государственные и муниципальные учреждения, которые работают в сфере культуры и искусства. Форма отчета — Приложение 8 к приказу Росстата от 24.07.2020 № 412"]
[null,null,null,null,null,null,null,null,null,"2022-07-15","Последний день, чтобы сдать отчет П-4 за июнь 2022 года в Росстат. Отчет сдают организации, в которых работает более 15 человек и годовой оборот которых более 800 млн руб. Форма отчета — Приложение 15 к Приказу Росстата от 30.07.2021 № 457"]
[null,null,null,null,null,null,null,null,null,"2022-07-15","Последний день, чтобы сдать отчет П-4 за II квартал 2022 года в Росстат. Отчет сдают организации, в которых работает менее 15 человек и годовой оборот которых менее 800 млн руб. Форма отчета — Приложение 15 к Приказу Росстата от 30.07.2021 № 457"]
[null,null,null,null,null,null,null,null,null,"2022-07-15","Последний день, чтобы сдать отчет СЗВ-М за июнь 2022 года в ПФР. Отчет сдают все организации. Форма отчета — постановление Правления ПФР от 15.04.2021 № 103п"]
[null,null,null,null,null,null,null,null,null,"2022-07-15","Последний день, чтобы сдать отчет СЗВ-ТД за июнь 2022 года в ПФР. Отчет сдают все организации, в которых были кадровые мероприятия в отчетном месяце. О приемах и увольнениях отчитываться нужно не позднее следующего рабочего дня после даты, когда издали приказ. Форма отчета — Постановление Правления Пенсионного фонда от 25.12.2019 № 730п"]
[null,null,null,null,null,null,null,null,null,"2022-08-01","Сдать отчет о наличии вакансий в службу занятости. Отчет сдают все организации. Форма отчета и даты отличаются в регионах "]
[null,null,null,null,null,null,null,null,null,"2022-08-01","Сдать отчет о квотируемых местах для инвалидов в службу занятости. Отчет сдают организции, которые обязаны квотировать рабочие места. Форма отчета и даты отличаются в регионах "]
[null,null,null,null,null,null,null,null,null,"2022-08-02","Последний день, чтобы сдать отчет 1-ПР за июль 2022 года в Росстат. Отчет сдают организации, в которых в отчетном месяце были забастовки. Форма отчета — Приложение 7 к Приказу Росстата от 30.07.2021 № 457"]
[null,null,null,null,null,null,null,null,null,"2022-08-02","Последний день, чтобы сдать отчет 3-Ф за июль 2022 года в Росстат. Отчет сдают организации с задолженностью по зарплате. Форма отчета — Приложение 8 к Приказу Росстата от 30.07.2021 № 457"]
[null,null,null,null,null,null,null,null,null,"2022-08-15","Последний день, чтобы сдать отчет П-4 за июль 2022 года в Росстат. Отчет сдают организации, в которых работает более 15 человек и годовой оборот которых более 800 млн руб.  Форма отчета — Приложение 15 к Приказу Росстата от 30.07.2021 № 457"]
[null,null,null,null,null,null,null,null,null,"2022-08-15","Последний день, чтобы сдать отчет СЗВ-М за июль 2022 года в ПФР. Отчет сдают все организации. Форма отчета — постановление Правления ПФР от 15.04.2021 № 103п"]
[null,null,null,null,null,null,null,null,null,"2022-08-15","Последний день, чтобы сдать отчет СЗВ-ТД за июль 2022 года в ПФР. Отчет сдают все организации, в которых были кадровые мероприятия в отчетном месяце. О приемах и увольнениях отчитываться нужно не позднее следующего рабочего дня после даты, когда издали приказ. Форма отчета — Постановление Правления Пенсионного фонда от 25.12.2019 № 730п"]
[null,null,null,null,null,null,null,null,null,"2022-09-01","Сдать отчет о наличии вакансий в службу занятости. Отчет сдают все организации. Форма отчета и даты отличаются в регионах "]
[null,null,null,null,null,null,null,null,null,"2022-09-01","Сдать отчет о квотируемых местах для инвалидов в службу занятости. Отчет сдают организации, которые обязаны квотировать рабочие места. Форма отчета и даты отличаются в регионах "]
[null,null,null,null,null,null,null,null,null,"2022-09-02","Последний день, чтобы сдать отчет 1-ПР за август 2022 года в Росстат. Организации, в которых в отчетном месяце были забастовки. Форма отчета — Приложение 7 к Приказу Росстата от 30.07.2021 № 457"]
[null,null,null,null,null,null,null,null,null,"2022-09-02","Последний день, чтобы сдать отчет 3-Ф за август 2022 года в Росстат. Отчет сдают организации с задолженностью по зарплате. Форма отчета — Приложение 8 к Приказу Росстата от 30.07.2021 № 457"]
[null,null,null,null,null,null,null,null,null,"2022-09-15","Последний день, чтобы сдать отчет СЗВ-М за август 2022 года в ПФР. Отчет сдают все организации. Форма отчета — Постановление Правления ПФР от 15.04.2021 № 103п"]
[null,null,null,null,null,null,null,null,null,"2022-09-15","Последний день, чтобы сдать отчет СЗВ-ТД за август 2022 года в ПФР. Отчет сдают все организации, в которых были кадровые мероприятия в отчетном месяце. О приемах и увольнениях отчитываться нужно не позднее следующего рабочего дня после даты, когда издали приказ. Форма отчета — Постановление Правления ПФР от 25.12.2019 № 730п"]
[null,null,null,null,null,null,null,null,null,"2022-09-15","Последний день, чтобы сдать отчет о военнообязанных мужского пола 45-и и 16-летнего возраста в военкомат. Отчет сдают все организации, в которых есть сотрудники указанного возраста. Форма отчета — Приложение 11 к Методическим рекомендациям, утв. Минобороны 11.07.2017."]
[null,null,null,null,null,null,null,null,null,"2022-10-03","Сдать отчет о наличии вакансий в службу занятости. Отчет сдают все организации. Форма отчета и даты отличаются в регионах "]
[null,null,null,null,null,null,null,null,null,"2022-10-03","Сдать отчет о квотируемых местах для инвалидов в службу занятости. Отчет сдают организации, которые обязаны квотировать рабочие места. Форма отчета и даты отличаются в регионах "]
[null,null,null,null,null,null,null,null,null,"2022-10-03","Последний день, чтобы сдать отчет 1-ПР за сентябрь 2022 года в Росстат. Отчет сдают организации, в которых в отчетном месяце были забастовки. Форма отчета — Приложение 7 к Приказу Росстата от 30.07.2021 № 457"]
[null,null,null,null,null,null,null,null,null,"2022-10-03","Последний день, чтобы сдать отчет 3-Ф за сентябрь 2022 года в Росстат. Отчет сдают организации с задолженностью по зарплате. Форма отчета — Приложение 8 к Приказу Росстата от 30.07.2021 № 457"]
[null,null,null,null,null,null,null,null,null,"2022-10-10","Последний день, чтобы сдать отчет П-4 (НЗ) за III квартал 2022 года в Росстат. Отчет сдают организации, в которых работает более 15 человек. Форма отчета — Приложение 14 к Приказу Росстата от 30.07.2021 № 457"]
[null,null,null,null,null,null,null,null,null,"2022-10-10","Последний день, чтобы сдать отчет ЗП-образование за III квартал 2022 года в Росстат. Отчет сдают Государственные и муниципальные образовательные организации. Форма отчета — Приложение 11 к Приказу Росстата от 30.07.2021 № 457"]
[null,null,null,null,null,null,null,null,null,"2022-10-10","Последний день, чтобы сдать отчет ЗП-наука за III квартал 2022 года в Росстат. Отчет сдают Государственные и муниципальные учреждения, которые занимаются научными исследованиями и разработками. Форма отчета — Приложение 12 к Приказу Росстата от 30.07.2021 № 457"]
[null,null,null,null,null,null,null,null,null,"2022-10-10","Последний день, чтобы сдать отчет ЗП-здрав за III квартал 2022 года в Росстат. Отчет сдают Государственные и муниципальные учреждения, которые работают в сфере здравоохранения. Форма отчета — Приложение 7 к приказу Росстата от 24.07.2020 № 412"]
[null,null,null,null,null,null,null,null,null,"2022-10-10","Последний день, чтобы сдать отчет ЗП-соц за II квартал 2022 года в Росстат. Отчет сдают Государственные и муниципальные учреждения, которые работают  в сфере социального обслуживания. Форма отчета — Приложение 11 к приказу Росстата от 24.07.2020 № 412"]
[null,null,null,null,null,null,null,null,null,"2022-10-10","Последний день, чтобы сдать отчет ЗП-культура за III квартал 2022 года в Росстат. Отчет сдают Государственные и муниципальные учреждения, которые работают в сфере культуры и искусства. Форма отчета — Приложение 8 к приказу Росстата от 24.07.2020 № 412"]
[null,null,null,null,null,null,null,null,null,"2022-10-17","Последний день, чтобы сдать отчет П-4 за III квартал 2022 года в Росстат. Отчет сдают организации, в которых работает менее 15 человек и годовой оборот которых менее 800 млн руб. Форма отчета — Приложение 15 к Приказу Росстата от 30.07.2021 № 457"]
[null,null,null,null,null,null,null,null,null,"2022-10-17","Последний день, чтобы сдать отчет СЗВ-М за сентябрь 2022 года в ПФР. Отчет сдают все организации. Форма отчета — постановление Правления ПФР от 15.04.2021 № 103п"]
[null,null,null,null,null,null,null,null,null,"2022-10-17","Последний день, чтобы сдать отчет СЗВ-ТД за сентябрь 2022 года в ПФР. Отчет сдают все организации, в которых были кадровые мероприятия в отчетном месяце. О приемах и увольнениях отчитываться нужно не позднее следующего рабочего дня после даты, когда издали приказ. Форма отчета — Постановление Правления ПФР от 25.12.2019 № 730п"]
[null,null,null,null,null,null,null,null,null,"2022-10-25","Последний день, чтобы сдать отчет 1-ГС за 2022 год в Росстат.  Отчет сдают государственные органы. Форма отчета — Приложение 17 к Приказ Росстата от 15.07.2019 № 404\n"]
[null,null,null,null,null,null,null,null,null,"2022-10-25","Последний день, чтобы сдать отчет 1-МС за 2022 год в Росстат.  Отчет сдают органы местного самоуправления. Форма отчета — Приложение  18 к Приказу Росстата от 15.07.2019 № 404\n"]
[null,null,null,null,null,null,null,null,null,"2022-11-01","Сдать отчет о наличии вакансий в службу занятости. Отчет сдают все организации. Форма отчета и даты отличаются в регионах "]
[null,null,null,null,null,null,null,null,null,"2022-11-01","Сдать отчет о квотируемых местах для инвалидов в службу занятости. Отчет сдают организации, которые обязаны квотировать рабочие места. Форма отчета и даты отличаются в регионах "]
[null,null,null,null,null,null,null,null,null,"2022-11-01","Сдать отчет о гражданах, которые подлежат первоначальной постановке на военный учет в следующем году в военкомат. Отчет сдают организации, в которых есть такие работники. Форма отчета — приложение 11 к Методическим рекомендациям, утв. Минобороны 11.07.2017"]
[null,null,null,null,null,null,null,null,null,"2022-11-02","Последний день, чтобы сдать отчет 1-ПР за октябрь 2022 года в Росстат. Организации, в которых в отчетном месяце были забастовки. Форма отчета — Приложение 7 к Приказу Росстата от 30.07.2021 № 457"]
[null,null,null,null,null,null,null,null,null,"2022-11-02","Последний день, чтобы сдать отчет 3-Ф за октябрь 2022 года в Росстат. Отчет сдают организации с задолженностью по зарплате. Форма отчета — Приложение 8 к Приказу Росстата от 30.07.2021 № 457"]
[null,null,null,null,null,null,null,null,null,"2022-11-03","Сократите на час рабочий день, статья 95 ТК"]
[null,null,null,null,null,null,null,null,null,"2022-11-15","Последний день, чтобы сдать отчет СЗВ-М за октябрь 2022 года в ПФР. Отчет сдают все организации. Форма отчета — постановление Правления ПФР от 15.04.2021 № 103п"]
[null,null,null,null,null,null,null,null,null,"2022-11-15","Последний день, чтобы сдать отчет СЗВ-ТД за октябрь 2022 года в ПФР. Отчет сдают все организации, в которых были кадровые мероприятия в отчетном месяце. О приемах и увольнениях отчитываться нужно не позднее следующего рабочего дня после даты, когда издали приказ. Форма отчета — Постановление Правления ПФР от 25.12.2019 № 730п"]
[null,null,null,null,null,null,null,null,null,"2022-11-15","Последний день, чтобы сдать отчет 1-ПР за октябрь 2022 года в Росстат. Отчет сдают организации, в которых в отчетном месяце были забастовки. Форма отчета — Приложение 7 к Приказу Росстата от 30.07.2021 № 457"]
[null,null,null,null,null,null,null,null,null,"2022-11-30","Последний день, чтобы сдать отчет 1-Т (проф) за 2022 год в Росстат. Отчет сдают организации за исключением малого бизнеса, которые попали в выборку Росстата. Форма отчета — Приложение 13 к Приказу Росстата от 24.07.2020 № 412"]
[null,null,null,null,null,null,null,null,null,"2022-12-01","Сдать отчет о наличии вакансий в службу занятости. Отчет сдают все организации. Форма отчета и даты отличаются в регионах "]
[null,null,null,null,null,null,null,null,null,"2022-12-01","Сдать отчет о квотируемых местах для инвалидов в службу занятости. Отчет сдают организации, которые обязаны квотировать рабочие места. Форма отчета и даты отличаются в регионах "]
[null,null,null,null,null,null,null,null,null,"2022-12-02","Последний день, чтобы сдать отчет 1-ПР за ноябрь 2022 года в Росстат. Организации, в которых в отчетном месяце были забастовки. Форма отчета — Приложение 7 к Приказу Росстата от 30.07.2021 № 457"]
[null,null,null,null,null,null,null,null,null,"2022-12-02","Последний день, чтобы сдать отчет 3-Ф за ноябрь 2022 года в Росстат. Отчет сдают организации с задолженностью по зарплате. Форма отчета — Приложение 8 к Приказу Росстата от 30.07.2021 № 457"]
[null,null,null,null,null,null,null,null,null,"2022-12-15","Последний день, чтобы сдать отчет СЗВ-М за ноябрь 2022 года в ПФР. Отчет сдают все организации. Форма отчета — постановление Правления ПФР от 15.04.2021 № 103п"]
[null,null,null,null,null,null,null,null,null,"2022-12-15","Последний день, чтобы сдать отчет СЗВ-ТД за ноябрь 2022 года в ПФР. Отчет сдают все организации, в которых были кадровые мероприятия в отчетном месяце. О приемах и увольнениях отчитываться нужно не позднее следующего рабочего дня после даты, когда издали приказ. Форма отчета — Постановление Правления ПФР от 25.12.2019 № 730п"]
[null,null,null,null,null,null,null,null,null,"2022-12-15","Последний день, чтобы сдать отчет 1-ПР за ноябрь 2022 года в Росстат. Отчет сдают организации, в которых в отчетном месяце были забастовки. Форма отчета — Приложение 7 к Приказу Росстата от 30.07.2021 № 457"]
[null,null,null,null,null,null,null,null,null,"",""]
[null,null,null,null,null,null,null,null,null,"",""]
[null,null,null,null,null,null,null,null,null,{"$f":"IF(INDIRECT(\"Задания!A\"&ROW()-12,TRUE)<>0,INDIRECT(\"Задания!A\"&ROW()-12,TRUE),\"\")","v":""},{"$f":"IF(INDIRECT(\"Задания!B\"&ROW()-12,TRUE)<>0,INDIRECT(\"Задания!B\"&ROW()-12,TRUE),\"\")","v":""}]
[null,null,null,null,null,null,null,null,null,"",""]
[null,null,null,null,null,null,null,null,null,"",""]
[null,null,null,null,null,null,null,null,null,"",""]
[null,null,null,null,null,null,null,null,null,"",""]
[null,null,null,null,null,null,null,null,null,"",""]
[null,null,null,null,null,null,null,null,null,"",""]
[null,null,null,null,null,null,null,null,null,"",""]
[null,null,null,null,null,null,null,null,null,"",""]
[null,null,null,null,null,null,null,null,null,"",""]
[null,null,null,null,null,null,null,null,null,"",""]
[null,null,null,null,null,null,null,null,null,"",""]
[null,null,null,null,null,null,null,null,null,"",""]
[null,null,null,null,null,null,null,null,null,"",""]
[null,null,null,null,null,null,null,null,null,"",""]
[null,null,null,null,null,null,null,null,null,"",""]
[null,null,null,null,null,null,null,null,null,"",""]
[null,null,null,null,null,null,null,null,null,"",""]
[null,null,null,null,null,null,null,null,null,"",""]
[null,null,null,null,null,null,null,null,null,"",""]
[null,null,null,null,null,null,null,null,null,"",""]
[null,null,null,null,null,null,null,null,null,"",""]
[null,null,null,null,null,null,null,null,null,"",""]
[null,null,null,null,null,null,null,null,null,"",""]
[null,null,null,null,null,null,null,null,null,"",""]
[null,null,null,null,null,null,null,null,null,"",""]
[null,null,null,null,null,null,null,null,null,"",""]
[null,null,null,null,null,null,null,null,null,"",""]
[null,null,null,null,null,null,null,null,null,"",""]
[null,null,null,null,null,null,null,null,null,"",""]
[null,null,null,null,null,null,null,null,null,"",""]
[null,null,null,null,null,null,null,null,null,"",""]
[null,null,null,null,null,null,null,null,null,"",""]
[null,null,null,null,null,null,null,null,null,"",""]
[null,null,null,null,null,null,null,null,null,"",""]
[null,null,null,null,null,null,null,null,null,"",""]
[null,null,null,null,null,null,null,null,null,"",""]
[null,null,null,null,null,null,null,null,null,"",""]
[null,null,null,null,null,null,null,null,null,"",""]
[null,null,null,null,null,null,null,null,null,"",""]
[null,null,null,null,null,null,null,null,null,"",""]
[null,null,null,null,null,null,null,null,null,"",""]
[null,null,null,null,null,null,null,null,null,"",""]
[null,null,null,null,null,null,null,null,null,"",""]
[null,null,null,null,null,null,null,null,null,"",""]
[null,null,null,null,null,null,null,null,null,"",""]
[null,null,null,null,null,null,null,null,null,"",""]
[null,null,null,null,null,null,null,null,null,"",""]
[null,null,null,null,null,null,null,null,null,"",""]
[null,null,null,null,null,null,null,null,null,"",""]
[null,null,null,null,null,null,null,null,null,"",""]
[null,null,null,null,null,null,null,null,null,"",""]
[null,null,null,null,null,null,null,null,null,"",""]
[null,null,null,null,null,null,null,null,null,"",""]
[null,null,null,null,null,null,null,null,null,"",""]
[null,null,null,null,null,null,null,null,null,"",""]
[null,null,null,null,null,null,null,null,null,"",""]
[null,null,null,null,null,null,null,null,null,"",""]
[null,null,null,null,null,null,null,null,null,"",""]
[null,null,null,null,null,null,null,null,null,"",""]
[null,null,null,null,null,null,null,null,null,"",""]
[null,null,null,null,null,null,null,null,null,"",""]
[null,null,null,null,null,null,null,null,null,"",""]
[null,null,null,null,null,null,null,null,null,"",""]
[null,null,null,null,null,null,null,null,null,{"$f":"IF(INDIRECT(\"Задания!A\"&ROW()-12,TRUE)<>0,INDIRECT(\"Задания!A\"&ROW()-12,TRUE),\"\")","v":""},{"$f":"IF(INDIRECT(\"Задания!B\"&ROW()-12,TRUE)<>0,INDIRECT(\"Задания!B\"&ROW()-12,TRUE),\"\")","v":""}]
[null,null,null,null,null,null,null,null,null,"",""]
[null,null,null,null,null,null,null,null,null,"",""]
[null,null,null,null,null,null,null,null,null,"",""]
[null,null,null,null,null,null,null,null,null,"",""]
[null,null,null,null,null,null,null,null,null,"",""]
[null,null,null,null,null,null,null,null,null,"",""]
[null,null,null,null,null,null,null,null,null,"",""]
[null,null,null,null,null,null,null,null,null,"",""]
[null,null,null,null,null,null,null,null,null,"",""]
[null,null,null,null,null,null,null,null,null,"",""]
[null,null,null,null,null,null,null,null,null,"",""]
[null,"Created by Chmel V.I.",null,null,null,null,null,null,null,"",""]
[null,"(с) 2021",null,null,null,null,null,null,null,"",""]
[null,null,null,null,null,null,null,null,null,"",""]
[null,null,null,null,null,null,null,null,null,"",""]
[null,null,null,null,null,null,null,null,null,"",""]
[null,null,null,null,null,null,null,null,null,"",""]
[null,null,null,null,null,null,null,null,null,"",""]
[null,null,null,null,null,null,null,null,null,"",""]
[null,null,null,null,null,null,null,null,null,"",""]
[null,null,null,null,null,null,null,null,null,"",""]
[null,null,null,null,null,null,null,null,null,"",""]
[null,null,null,null,null,null,null,null,null,"",""]
[null,null,null,null,null,null,null,null,null,"",""]
[null,null,null,null,null,null,null,null,null,"",""]
[null,null,null,null,null,null,null,null,null,"",""]
[null,null,null,null,null,null,null,null,null,"",""]
[null,null,null,null,null,null,null,null,null,"",""]
[null,null,null,null,null,null,null,null,null,"",""]
[null,null,null,null,null,null,null,null,null,"",""]
[null,null,null,null,null,null,null,null,null,"",""]
[null,null,null,null,null,null,null,null,null,"",""]
[null,null,null,null,null,null,null,null,null,"",""]
[null,null,null,null,null,null,null,null,null,"",""]
[null,null,null,null,null,null,null,null,null,"",""]
[null,null,null,null,null,null,null,null,null,"",""]
[null,null,null,null,null,null,null,null,null,"",""]
[null,null,null,null,null,null,null,null,null,"",""]
[null,null,null,null,null,null,null,null,null,"",""]
[null,null,null,null,null,null,null,null,null,"",""]
[null,null,null,null,null,null,null,null,null,"",""]
[null,null,null,null,null,null,null,null,null,"",""]
[null,null,null,null,null,null,null,null,null,"",""]
[null,null,null,null,null,null,null,null,null,"",""]
[null,null,null,null,null,null,null,null,null,"",""]
[null,null,null,null,null,null,null,null,null,"",""]
[null,null,null,null,null,null,null,null,null,"",""]
[null,null,null,null,null,null,null,null,null,"",""]
[null,null,null,null,null,null,null,null,null,"",""]
[null,null,null,null,null,null,null,null,null,"",""]
[null,null,null,null,null,null,null,null,null,"",""]
[null,null,null,null,null,null,null,null,null,"",""]
[null,null,null,null,null,null,null,null,null,"",""]
[null,null,null,null,null,null,null,null,null,"",""]
[null,null,null,null,null,null,null,null,null,"",""]
[null,null,null,null,null,null,null,null,null,"",""]
[null,null,null,null,null,null,null,null,null,"",""]
[null,null,null,null,null,null,null,null,null,"",""]
[null,null,null,null,null,null,null,null,null,"",""]
[null,null,null,null,null,null,null,null,null,"",""]
[null,null,null,null,null,null,null,null,null,"",""]
[null,null,null,null,null,null,null,null,null,"",""]
[null,null,null,null,null,null,null,null,null,"",""]
[null,null,null,null,null,null,null,null,null,{"$f":"IF(INDIRECT(\"Задания!A\"&ROW()-12,TRUE)<>0,INDIRECT(\"Задания!A\"&ROW()-12,TRUE),\"\")","v":""},{"$f":"IF(INDIRECT(\"Задания!B\"&ROW()-12,TRUE)<>0,INDIRECT(\"Задания!B\"&ROW()-12,TRUE),\"\")","v":""}]
[null,null,null,null,null,null,null,null,null,"",""]
[null,null,null,null,null,null,null,null,null,"",""]
[null,null,null,null,null,null,null,null,null,"",""]
[null,null,null,null,null,null,null,null,null,"",""]
[null,null,null,null,null,null,null,null,null,"",""]
[null,null,null,null,null,null,null,null,null,"",""]
[null,null,null,null,null,null,null,null,null,"",""]
[null,null,null,null,null,null,null,null,null,"",""]
[null,null,null,null,null,null,null,null,null,"",""]
[null,null,null,null,null,null,null,null,null,"",""]
[null,null,null,null,null,null,null,null,null,"",""]
[null,null,null,null,null,null,null,null,null,"",""]
[null,null,null,null,null,null,null,null,null,"",""]
[null,null,null,null,null,null,null,null,null,"",""]
[null,null,null,null,null,null,null,null,null,"",""]
[null,null,null,null,null,null,null,null,null,"",""]
[null,null,null,null,null,null,null,null,null,"",""]
[null,null,null,null,null,null,null,null,null,"",""]
[null,null,null,null,null,null,null,null,null,"",""]
[null,null,null,null,null,null,null,null,null,"",""]
[null,null,null,null,null,null,null,null,null,"",""]
[null,null,null,null,null,null,null,null,null,"",""]
[null,null,null,null,null,null,null,null,null,"",""]
[null,null,null,null,null,null,null,null,null,"",""]
[null,null,null,null,null,null,null,null,null,"",""]
[null,null,null,null,null,null,null,null,null,"",""]
[null,null,null,null,null,null,null,null,null,"",""]
[null,null,null,null,null,null,null,null,null,"",""]
[null,null,null,null,null,null,null,null,null,"",""]
[null,null,null,null,null,null,null,null,null,"",""]
[null,null,null,null,null,null,null,null,null,"",""]
[null,null,null,null,null,null,null,null,null,"",""]
[null,null,null,null,null,null,null,null,null,"",""]
[null,null,null,null,null,null,null,null,null,"",""]
[null,null,null,null,null,null,null,null,null,"",""]
[null,null,null,null,null,null,null,null,null,"",""]
[null,null,null,null,null,null,null,null,null,"",""]
[null,null,null,null,null,null,null,null,null,"",""]
[null,null,null,null,null,null,null,null,null,"",""]
[null,null,null,null,null,null,null,null,null,"",""]
[null,null,null,null,null,null,null,null,null,"",""]
[null,null,null,null,null,null,null,null,null,"",""]
[null,null,null,null,null,null,null,null,null,"",""]
[null,null,null,null,null,null,null,null,null,"",""]
[null,null,null,null,null,null,null,null,null,"",""]
[null,null,null,null,null,null,null,null,null,"",""]
[null,null,null,null,null,null,null,null,null,"",""]
[null,null,null,null,null,null,null,null,null,"",""]
[null,null,null,null,null,null,null,null,null,"",""]
[null,null,null,null,null,null,null,null,null,"",""]
[null,null,null,null,null,null,null,null,null,"",""]
[null,null,null,null,null,null,null,null,null,"",""]
[null,null,null,null,null,null,null,null,null,"",""]
[null,null,null,null,null,null,null,null,null,"",""]
[null,null,null,null,null,null,null,null,null,"",""]
[null,null,null,null,null,null,null,null,null,"",""]
[null,null,null,null,null,null,null,null,null,"",""]
[null,null,null,null,null,null,null,null,null,"",""]
[null,null,null,null,null,null,null,null,null,"",""]
[null,null,null,null,null,null,null,null,null,"",""]
[null,null,null,null,null,null,null,null,null,"",""]
[null,null,null,null,null,null,null,null,null,"",""]
[null,null,null,null,null,null,null,null,null,"",""]
[null,null,null,null,null,null,null,null,null,{"$f":"IF(INDIRECT(\"Задания!A\"&ROW()-12,TRUE)<>0,INDIRECT(\"Задания!A\"&ROW()-12,TRUE),\"\")","v":""},{"$f":"IF(INDIRECT(\"Задания!B\"&ROW()-12,TRUE)<>0,INDIRECT(\"Задания!B\"&ROW()-12,TRUE),\"\")","v":""}]
[null,null,null,null,null,null,null,null,null,"",""]
[null,null,null,null,null,null,null,null,null,"",""]
[null,null,null,null,null,null,null,null,null,"",""]
[null,null,null,null,null,null,null,null,null,"",""]
[null,null,null,null,null,null,null,null,null,"",""]
[null,null,null,null,null,null,null,null,null,"",""]
[null,null,null,null,null,null,null,null,null,"",""]
[null,null,null,null,null,null,null,null,null,"",""]
[null,null,null,null,null,null,null,null,null,"",""]
[null,null,null,null,null,null,null,null,null,"",""]
[null,null,null,null,null,null,null,null,null,"",""]
[null,null,null,null,null,null,null,null,null,"",""]
[null,null,null,null,null,null,null,null,null,"",""]
[null,null,null,null,null,null,null,null,null,"",""]
[null,null,null,null,null,null,null,null,null,"",""]
[null,null,null,null,null,null,null,null,null,"",""]
[null,null,null,null,null,null,null,null,null,"",""]
[null,null,null,null,null,null,null,null,null,"",""]
[null,null,null,null,null,null,null,null,null,"",""]
[null,null,null,null,null,null,null,null,null,"",""]
[null,null,null,null,null,null,null,null,null,"",""]
[null,null,null,null,null,null,null,null,null,"",""]
[null,null,null,null,null,null,null,null,null,"",""]
[null,null,null,null,null,null,null,null,null,"",""]
[null,null,null,null,null,null,null,null,null,"",""]
[null,null,null,null,null,null,null,null,null,"",""]
[null,null,null,null,null,null,null,null,null,"",""]
[null,null,null,null,null,null,null,null,null,"",""]
[null,null,null,null,null,null,null,null,null,"",""]
[null,null,null,null,null,null,null,null,null,"",""]
[null,null,null,null,null,null,null,null,null,"",""]
[null,null,null,null,null,null,null,null,null,"",""]
[null,null,null,null,null,null,null,null,null,"",""]
[null,null,null,null,null,null,null,null,null,"",""]
[null,null,null,null,null,null,null,null,null,"",""]
[null,null,null,null,null,null,null,null,null,"",""]
[null,null,null,null,null,null,null,null,null,"",""]
[null,null,null,null,null,null,null,null,null,"",""]
[null,null,null,null,null,null,null,null,null,"",""]
[null,null,null,null,null,null,null,null,null,"",""]
[null,null,null,null,null,null,null,null,null,"",""]
[null,null,null,null,null,null,null,null,null,"",""]
[null,null,null,null,null,null,null,null,null,"",""]
[null,null,null,null,null,null,null,null,null,"",""]
[null,null,null,null,null,null,null,null,null,"",""]
[null,null,null,null,null,null,null,null,null,"",""]
[null,null,null,null,null,null,null,null,null,"",""]
[null,null,null,null,null,null,null,null,null,"",""]
[null,null,null,null,null,null,null,null,null,"",""]
[null,null,null,null,null,null,null,null,null,"",""]
[null,null,null,null,null,null,null,null,null,"",""]
[null,null,null,null,null,null,null,null,null,"",""]
[null,null,null,null,null,null,null,null,null,"",""]
[null,null,null,null,null,null,null,null,null,"",""]
[null,null,null,null,null,null,null,null,null,"",""]
[null,null,null,null,null,null,null,null,null,"",""]
[null,null,null,null,null,null,null,null,null,"",""]
[null,null,null,null,null,null,null,null,null,"",""]
[null,null,null,null,null,null,null,null,null,"",""]
[null,null,null,null,null,null,null,null,null,"",""]
[null,null,null,null,null,null,null,null,null,"",""]
[null,null,null,null,null,null,null,null,null,"",""]
[null,null,null,null,null,null,null,null,null,"",""]
[null,null,null,null,null,null,null,null,null,{"$f":"IF(INDIRECT(\"Задания!A\"&ROW()-12,TRUE)<>0,INDIRECT(\"Задания!A\"&ROW()-12,TRUE),\"\")","v":""},{"$f":"IF(INDIRECT(\"Задания!B\"&ROW()-12,TRUE)<>0,INDIRECT(\"Задания!B\"&ROW()-12,TRUE),\"\")","v":""}]
[null,null,null,null,null,null,null,null,null,"",""]
[null,null,null,null,null,null,null,null,null,"",""]
[null,null,null,null,null,null,null,null,null,"",""]
[null,null,null,null,null,null,null,null,null,"",""]
[null,null,null,null,null,null,null,null,null,"",""]
[null,null,null,null,null,null,null,null,null,"",""]
[null,null,null,null,null,null,null,null,null,"",""]
[null,null,null,null,null,null,null,null,null,"",""]
[null,null,null,null,null,null,null,null,null,"",""]
[null,null,null,null,null,null,null,null,null,"",""]
[null,null,null,null,null,null,null,null,null,"",""]
[null,null,null,null,null,null,null,null,null,"",""]
[null,null,null,null,null,null,null,null,null,"",""]
[null,null,null,null,null,null,null,null,null,"",""]
[null,null,null,null,null,null,null,null,null,"",""]
[null,null,null,null,null,null,null,null,null,"",""]
[null,null,null,null,null,null,null,null,null,"",""]
[null,null,null,null,null,null,null,null,null,"",""]
[null,null,null,null,null,null,null,null,null,"",""]
[null,null,null,null,null,null,null,null,null,"",""]
[null,null,null,null,null,null,null,null,null,"",""]
[null,null,null,null,null,null,null,null,null,"",""]
[null,null,null,null,null,null,null,null,null,"",""]
[null,null,null,null,null,null,null,null,null,"",""]
[null,null,null,null,null,null,null,null,null,"",""]
[null,null,null,null,null,null,null,null,null,"",""]
[null,null,null,null,null,null,null,null,null,"",""]
[null,null,null,null,null,null,null,null,null,"",""]
[null,null,null,null,null,null,null,null,null,"",""]
[null,null,null,null,null,null,null,null,null,"",""]
[null,null,null,null,null,null,null,null,null,"",""]
[null,null,null,null,null,null,null,null,null,"",""]
[null,null,null,null,null,null,null,null,null,"",""]
[null,null,null,null,null,null,null,null,null,"",""]
[null,null,null,null,null,null,null,null,null,"",""]
[null,null,null,null,null,null,null,null,null,"",""]
[null,null,null,null,null,null,null,null,null,"",""]
[null,null,null,null,null,null,null,null,null,"",""]
[null,null,null,null,null,null,null,null,null,"",""]
[null,null,null,null,null,null,null,null,null,"",""]
[null,null,null,null,null,null,null,null,null,"",""]
[null,null,null,null,null,null,null,null,null,"",""]
[null,null,null,null,null,null,null,null,null,"",""]
[null,null,null,null,null,null,null,null,null,"",""]
[null,null,null,null,null,null,null,null,null,"",""]
[null,null,null,null,null,null,null,null,null,"",""]
[null,null,null,null,null,null,null,null,null,"",""]
[null,null,null,null,null,null,null,null,null,"",""]
[null,null,null,null,null,null,null,null,null,"",""]
[null,null,null,null,null,null,null,null,null,"",""]
[null,null,null,null,null,null,null,null,null,"",""]
[null,null,null,null,null,null,null,null,null,"",""]
[null,null,null,null,null,null,null,null,null,"",""]
[null,null,null,null,null,null,null,null,null,"",""]
[null,null,null,null,null,null,null,null,null,"",""]
[null,null,null,null,null,null,null,null,null,"",""]
[null,null,null,null,null,null,null,null,null,"",""]
[null,null,null,null,null,null,null,null,null,"",""]
[null,null,null,null,null,null,null,null,null,"",""]
[null,null,null,null,null,null,null,null,null,"",""]
[null,null,null,null,null,null,null,null,null,"",""]
[null,null,null,null,null,null,null,null,null,"",""]
[null,null,null,null,null,null,null,null,null,"",""]
[null,null,null,null,null,null,null,null,null,{"$f":"IF(INDIRECT(\"Задания!A\"&ROW()-12,TRUE)<>0,INDIRECT(\"Задания!A\"&ROW()-12,TRUE),\"\")","v":""},{"$f":"IF(INDIRECT(\"Задания!B\"&ROW()-12,TRUE)<>0,INDIRECT(\"Задания!B\"&ROW()-12,TRUE),\"\")","v":""}]
[null,null,null,null,null,null,null,null,null,"",""]
[null,null,null,null,null,null,null,null,null,"",""]
[null,null,null,null,null,null,null,null,null,"",""]
[null,null,null,null,null,null,null,null,null,"",""]
[null,null,null,null,null,null,null,null,null,"",""]
[null,null,null,null,null,null,null,null,null,"",""]
[null,null,null,null,null,null,null,null,null,"",""]
[null,null,null,null,null,null,null,null,null,"",""]
[null,null,null,null,null,null,null,null,null,"",""]
[null,null,null,null,null,null,null,null,null,"",""]
[null,null,null,null,null,null,null,null,null,"",""]
[null,null,null,null,null,null,null,null,null,"",""]
[null,null,null,null,null,null,null,null,null,"",""]
[null,null,null,null,null,null,null,null,null,"",""]
[null,null,null,null,null,null,null,null,null,"",""]
[null,null,null,null,null,null,null,null,null,"",""]
[null,null,null,null,null,null,null,null,null,"",""]
[null,null,null,null,null,null,null,null,null,"",""]
[null,null,null,null,null,null,null,null,null,"",""]
[null,null,null,null,null,null,null,null,null,"",""]
[null,null,null,null,null,null,null,null,null,"",""]
[null,null,null,null,null,null,null,null,null,"",""]
[null,null,null,null,null,null,null,null,null,"",""]
[null,null,null,null,null,null,null,null,null,"",""]
[null,null,null,null,null,null,null,null,null,"",""]
[null,null,null,null,null,null,null,null,null,"",""]
[null,null,null,null,null,null,null,null,null,"",""]
[null,null,null,null,null,null,null,null,null,"",""]
[null,null,null,null,null,null,null,null,null,"",""]
[null,null,null,null,null,null,null,null,null,"",""]
[null,null,null,null,null,null,null,null,null,"",""]
[null,null,null,null,null,null,null,null,null,"",""]
[null,null,null,null,null,null,null,null,null,"",""]
[null,null,null,null,null,null,null,null,null,"",""]
[null,null,null,null,null,null,null,null,null,"",""]
[null,null,null,null,null,null,null,null,null,"",""]
[null,null,null,null,null,null,null,null,null,"",""]
[null,null,null,null,null,null,null,null,null,"",""]
[null,null,null,null,null,null,null,null,null,"",""]
[null,null,null,null,null,null,null,null,null,"",""]
[null,null,null,null,null,null,null,null,null,"",""]
[null,null,null,null,null,null,null,null,null,"",""]
[null,null,null,null,null,null,null,null,null,"",""]
[null,null,null,null,null,null,null,null,null,"",""]
[null,null,null,null,null,null,null,null,null,"",""]
[null,null,null,null,null,null,null,null,null,"",""]
[null,null,null,null,null,null,null,null,null,"",""]
[null,null,null,null,null,null,null,null,null,"",""]
[null,null,null,null,null,null,null,null,null,"",""]
[null,null,null,null,null,null,null,null,null,"",""]
[null,null,null,null,null,null,null,null,null,"",""]
[null,null,null,null,null,null,null,null,null,"",""]
[null,null,null,null,null,null,null,null,null,"",""]
[null,null,null,null,null,null,null,null,null,"",""]
[null,null,null,null,null,null,null,null,null,"",""]
[null,null,null,null,null,null,null,null,null,"",""]
[null,null,null,null,null,null,null,null,null,"",""]
[null,null,null,null,null,null,null,null,null,"",""]
[null,null,null,null,null,null,null,null,null,"",""]
[null,null,null,null,null,null,null,null,null,"",""]
[null,null,null,null,null,null,null,null,null,"",""]
[null,null,null,null,null,null,null,null,null,"",""]
[null,null,null,null,null,null,null,null,null,"",""]
[null,null,null,null,null,null,null,null,null,{"$f":"IF(INDIRECT(\"Задания!A\"&ROW()-12,TRUE)<>0,INDIRECT(\"Задания!A\"&ROW()-12,TRUE),\"\")","v":""},{"$f":"IF(INDIRECT(\"Задания!B\"&ROW()-12,TRUE)<>0,INDIRECT(\"Задания!B\"&ROW()-12,TRUE),\"\")","v":""}]
[null,null,null,null,null,null,null,null,null,"",""]
[null,null,null,null,null,null,null,null,null,"",""]
[null,null,null,null,null,null,null,null,null,"",""]
[null,null,null,null,null,null,null,null,null,"",""]
[null,null,null,null,null,null,null,null,null,"",""]
[null,null,null,null,null,null,null,null,null,"",""]
[null,null,null,null,null,null,null,null,null,"",""]
[null,null,null,null,null,null,null,null,null,"",""]
[null,null,null,null,null,null,null,null,null,"",""]
[null,null,null,null,null,null,null,null,null,"",""]
[null,null,null,null,null,null,null,null,null,"",""]
[null,null,null,null,null,null,null,null,null,"",""]
[null,null,null,null,null,null,null,null,null,"",""]
[null,null,null,null,null,null,null,null,null,"",""]
[null,null,null,null,null,null,null,null,null,"",""]
[null,null,null,null,null,null,null,null,null,"",""]
[null,null,null,null,null,null,null,null,null,"",""]
[null,null,null,null,null,null,null,null,null,"",""]
[null,null,null,null,null,null,null,null,null,"",""]
[null,null,null,null,null,null,null,null,null,"",""]
[null,null,null,null,null,null,null,null,null,"",""]
[null,null,null,null,null,null,null,null,null,"",""]
[null,null,null,null,null,null,null,null,null,"",""]
[null,null,null,null,null,null,null,null,null,"",""]
[null,null,null,null,null,null,null,null,null,"",""]
[null,null,null,null,null,null,null,null,null,"",""]
[null,null,null,null,null,null,null,null,null,"",""]
[null,null,null,null,null,null,null,null,null,"",""]
[null,null,null,null,null,null,null,null,null,"",""]
[null,null,null,null,null,null,null,null,null,"",""]
[null,null,null,null,null,null,null,null,null,"",""]
[null,null,null,null,null,null,null,null,null,"",""]
[null,null,null,null,null,null,null,null,null,"",""]
[null,null,null,null,null,null,null,null,null,"",""]
[null,null,null,null,null,null,null,null,null,"",""]
[null,null,null,null,null,null,null,null,null,"",""]
[null,null,null,null,null,null,null,null,null,"",""]
[null,null,null,null,null,null,null,null,null,"",""]
[null,null,null,null,null,null,null,null,null,"",""]
[null,null,null,null,null,null,null,null,null,"",""]
[null,null,null,null,null,null,null,null,null,"",""]
[null,null,null,null,null,null,null,null,null,"",""]
[null,null,null,null,null,null,null,null,null,"",""]
[null,null,null,null,null,null,null,null,null,"",""]
[null,null,null,null,null,null,null,null,null,"",""]
[null,null,null,null,null,null,null,null,null,"",""]
[null,null,null,null,null,null,null,null,null,"",""]
[null,null,null,null,null,null,null,null,null,"",""]
[null,null,null,null,null,null,null,null,null,"",""]
[null,null,null,null,null,null,null,null,null,"",""]
[null,null,null,null,null,null,null,null,null,"",""]
[null,null,null,null,null,null,null,null,null,"",""]
[null,null,null,null,null,null,null,null,null,"",""]
[null,null,null,null,null,null,null,null,null,"",""]
[null,null,null,null,null,null,null,null,null,"",""]
[null,null,null,null,null,null,null,null,null,"",""]
[null,null,null,null,null,null,null,null,null,"",""]
[null,null,null,null,null,null,null,null,null,"",""]
[null,null,null,null,null,null,null,null,null,"",""]
[null,null,null,null,null,null,null,null,null,"",""]
[null,null,null,null,null,null,null,null,null,"",""]
[null,null,null,null,null,null,null,null,null,"",""]
[null,null,null,null,null,null,null,null,null,"",""]
[null,null,null,null,null,null,null,null,null,{"$f":"IF(INDIRECT(\"Задания!A\"&ROW()-12,TRUE)<>0,INDIRECT(\"Задания!A\"&ROW()-12,TRUE),\"\")","v":""},{"$f":"IF(INDIRECT(\"Задания!B\"&ROW()-12,TRUE)<>0,INDIRECT(\"Задания!B\"&ROW()-12,TRUE),\"\")","v":""}]
[null,null,null,null,null,null,null,null,null,"",""]
[null,null,null,null,null,null,null,null,null,"",""]
[null,null,null,null,null,null,null,null,null,"",""]
[null,null,null,null,null,null,null,null,null,"",""]
[null,null,null,null,null,null,null,null,null,"",""]
[null,null,null,null,null,null,null,null,null,"",""]
[null,null,null,null,null,null,null,null,null,"",""]
[null,null,null,null,null,null,null,null,null,"",""]
[null,null,null,null,null,null,null,null,null,"",""]
[null,null,null,null,null,null,null,null,null,"",""]
[null,null,null,null,null,null,null,null,null,"",""]
[null,null,null,null,null,null,null,null,null,"",""]
[null,null,null,null,null,null,null,null,null,"",""]
[null,null,null,null,null,null,null,null,null,"",""]
[null,null,null,null,null,null,null,null,null,"",""]
[null,null,null,null,null,null,null,null,null,"",""]
[null,null,null,null,null,null,null,null,null,"",""]
[null,null,null,null,null,null,null,null,null,"",""]
[null,null,null,null,null,null,null,null,null,"",""]
[null,null,null,null,null,null,null,null,null,"",""]
[null,null,null,null,null,null,null,null,null,"",""]
[null,null,null,null,null,null,null,null,null,"",""]
[null,null,null,null,null,null,null,null,null,"",""]
[null,null,null,null,null,null,null,null,null,"",""]
[null,null,null,null,null,null,null,null,null,"",""]
[null,null,null,null,null,null,null,null,null,"",""]
[null,null,null,null,null,null,null,null,null,"",""]
[null,null,null,null,null,null,null,null,null,"",""]
[null,null,null,null,null,null,null,null,null,"",""]
[null,null,null,null,null,null,null,null,null,"",""]
[null,null,null,null,null,null,null,null,null,"",""]
[null,null,null,null,null,null,null,null,null,"",""]
[null,null,null,null,null,null,null,null,null,"",""]
[null,null,null,null,null,null,null,null,null,"",""]
[null,null,null,null,null,null,null,null,null,"",""]
[null,null,null,null,null,null,null,null,null,"",""]
[null,null,null,null,null,null,null,null,null,"",""]
[null,null,null,null,null,null,null,null,null,"",""]
[null,null,null,null,null,null,null,null,null,"",""]
[null,null,null,null,null,null,null,null,null,"",""]
[null,null,null,null,null,null,null,null,null,"",""]
[null,null,null,null,null,null,null,null,null,"",""]
[null,null,null,null,null,null,null,null,null,"",""]
[null,null,null,null,null,null,null,null,null,"",""]
[null,null,null,null,null,null,null,null,null,"",""]
[null,null,null,null,null,null,null,null,null,"",""]
[null,null,null,null,null,null,null,null,null,"",""]
[null,null,null,null,null,null,null,null,null,"",""]
[null,null,null,null,null,null,null,null,null,"",""]
[null,null,null,null,null,null,null,null,null,"",""]
[null,null,null,null,null,null,null,null,null,"",""]
[null,null,null,null,null,null,null,null,null,"",""]
[null,null,null,null,null,null,null,null,null,"",""]
[null,null,null,null,null,null,null,null,null,"",""]
[null,null,null,null,null,null,null,null,null,"",""]
[null,null,null,null,null,null,null,null,null,"",""]
[null,null,null,null,null,null,null,null,null,"",""]
[null,null,null,null,null,null,null,null,null,"",""]
[null,null,null,null,null,null,null,null,null,"",""]
[null,null,null,null,null,null,null,null,null,"",""]
[null,null,null,null,null,null,null,null,null,"",""]
[null,null,null,null,null,null,null,null,null,"",""]
[null,null,null,null,null,null,null,null,null,"",""]
[null,null,null,null,null,null,null,null,null,{"$f":"IF(INDIRECT(\"Задания!A\"&ROW()-12,TRUE)<>0,INDIRECT(\"Задания!A\"&ROW()-12,TRUE),\"\")","v":""},{"$f":"IF(INDIRECT(\"Задания!B\"&ROW()-12,TRUE)<>0,INDIRECT(\"Задания!B\"&ROW()-12,TRUE),\"\")","v":""}]
[null,null,null,null,null,null,null,null,null,"",""]
[null,null,null,null,null,null,null,null,null,"",""]
[null,null,null,null,null,null,null,null,null,"",""]
[null,null,null,null,null,null,null,null,null,"",""]
[null,null,null,null,null,null,null,null,null,"",""]
[null,null,null,null,null,null,null,null,null,"",""]
[null,null,null,null,null,null,null,null,null,"",""]
[null,null,null,null,null,null,null,null,null,"",""]
[null,null,null,null,null,null,null,null,null,"",""]
[null,null,null,null,null,null,null,null,null,"",""]
[null,null,null,null,null,null,null,null,null,"",""]
[null,null,null,null,null,null,null,null,null,"",""]
[null,null,null,null,null,null,null,null,null,"",""]
[null,null,null,null,null,null,null,null,null,"",""]
[null,null,null,null,null,null,null,null,null,"",""]
[null,null,null,null,null,null,null,null,null,"",""]
[null,null,null,null,null,null,null,null,null,"",""]
[null,null,null,null,null,null,null,null,null,"",""]
[null,null,null,null,null,null,null,null,null,"",""]
[null,null,null,null,null,null,null,null,null,"",""]
[null,null,null,null,null,null,null,null,null,"",""]
[null,null,null,null,null,null,null,null,null,"",""]
[null,null,null,null,null,null,null,null,null,"",""]
[null,null,null,null,null,null,null,null,null,"",""]
[null,null,null,null,null,null,null,null,null,"",""]
[null,null,null,null,null,null,null,null,null,"",""]
[null,null,null,null,null,null,null,null,null,"",""]
[null,null,null,null,null,null,null,null,null,"",""]
[null,null,null,null,null,null,null,null,null,"",""]
[null,null,null,null,null,null,null,null,null,"",""]
[null,null,null,null,null,null,null,null,null,"",""]
[null,null,null,null,null,null,null,null,null,"",""]
[null,null,null,null,null,null,null,null,null,"",""]
[null,null,null,null,null,null,null,null,null,"",""]
[null,null,null,null,null,null,null,null,null,"",""]
[null,null,null,null,null,null,null,null,null,"",""]
[null,null,null,null,null,null,null,null,null,"",""]
[null,null,null,null,null,null,null,null,null,"",""]
[null,null,null,null,null,null,null,null,null,"",""]
[null,null,null,null,null,null,null,null,null,"",""]
[null,null,null,null,null,null,null,null,null,"",""]
[null,null,null,null,null,null,null,null,null,"",""]
[null,null,null,null,null,null,null,null,null,"",""]
[null,null,null,null,null,null,null,null,null,"",""]
[null,null,null,null,null,null,null,null,null,"",""]
[null,null,null,null,null,null,null,null,null,"",""]
[null,null,null,null,null,null,null,null,null,"",""]
[null,null,null,null,null,null,null,null,null,"",""]
[null,null,null,null,null,null,null,null,null,"",""]
[null,null,null,null,null,null,null,null,null,"",""]
[null,null,null,null,null,null,null,null,null,"",""]
[null,null,null,null,null,null,null,null,null,"",""]
[null,null,null,null,null,null,null,null,null,"",""]
[null,null,null,null,null,null,null,null,null,"",""]
[null,null,null,null,null,null,null,null,null,"",""]
[null,null,null,null,null,null,null,null,null,"",""]
[null,null,null,null,null,null,null,null,null,"",""]
[null,null,null,null,null,null,null,null,null,"",""]
[null,null,null,null,null,null,null,null,null,"",""]
[null,null,null,null,null,null,null,null,null,"",""]
[null,null,null,null,null,null,null,null,null,"",""]
[null,null,null,null,null,null,null,null,null,"",""]
[null,null,null,null,null,null,null,null,null,"",""]
[null,null,null,null,null,null,null,null,null,{"$f":"IF(INDIRECT(\"Задания!A\"&ROW()-12,TRUE)<>0,INDIRECT(\"Задания!A\"&ROW()-12,TRUE),\"\")","v":""},{"$f":"IF(INDIRECT(\"Задания!B\"&ROW()-12,TRUE)<>0,INDIRECT(\"Задания!B\"&ROW()-12,TRUE),\"\")","v":""}]
[null,null,null,null,null,null,null,null,null,"",""]
[null,null,null,null,null,null,null,null,null,"",""]
[null,null,null,null,null,null,null,null,null,"",""]
[null,null,null,null,null,null,null,null,null,"",""]
[null,null,null,null,null,null,null,null,null,"",""]
[null,null,null,null,null,null,null,null,null,"",""]
[null,null,null,null,null,null,null,null,null,"",""]
[null,null,null,null,null,null,null,null,null,"",""]
[null,null,null,null,null,null,null,null,null,"",""]
[null,null,null,null,null,null,null,null,null,"",""]
[null,null,null,null,null,null,null,null,null,"",""]
[null,null,null,null,null,null,null,null,null,"",""]
[null,null,null,null,null,null,null,null,null,"",""]
[null,null,null,null,null,null,null,null,null,"",""]
[null,null,null,null,null,null,null,null,null,"",""]
[null,null,null,null,null,null,null,null,null,"",""]
[null,null,null,null,null,null,null,null,null,"",""]
[null,null,null,null,null,null,null,null,null,"",""]
[null,null,null,null,null,null,null,null,null,"",""]
[null,null,null,null,null,null,null,null,null,"",""]
[null,null,null,null,null,null,null,null,null,"",""]
[null,null,null,null,null,null,null,null,null,"",""]
[null,null,null,null,null,null,null,null,null,"",""]
[null,null,null,null,null,null,null,null,null,"",""]
[null,null,null,null,null,null,null,null,null,"",""]
[null,null,null,null,null,null,null,null,null,"",""]
[null,null,null,null,null,null,null,null,null,"",""]
[null,null,null,null,null,null,null,null,null,"",""]
[null,null,null,null,null,null,null,null,null,"",""]
[null,null,null,null,null,null,null,null,null,"",""]
[null,null,null,null,null,null,null,null,null,"",""]
[null,null,null,null,null,null,null,null,null,"",""]
[null,null,null,null,null,null,null,null,null,"",""]
[null,null,null,null,null,null,null,null,null,"",""]
[null,null,null,null,null,null,null,null,null,"",""]
[null,null,null,null,null,null,null,null,null,"",""]
[null,null,null,null,null,null,null,null,null,"",""]
[null,null,null,null,null,null,null,null,null,"",""]
[null,null,null,null,null,null,null,null,null,"",""]
[null,null,null,null,null,null,null,null,null,"",""]
[null,null,null,null,null,null,null,null,null,"",""]
[null,null,null,null,null,null,null,null,null,"",""]
[null,null,null,null,null,null,null,null,null,"",""]
[null,null,null,null,null,null,null,null,null,"",""]
[null,null,null,null,null,null,null,null,null,"",""]
[null,null,null,null,null,null,null,null,null,"",""]
[null,null,null,null,null,null,null,null,null,"",""]
[null,null,null,null,null,null,null,null,null,"",""]
[null,null,null,null,null,null,null,null,null,"",""]
[null,null,null,null,null,null,null,null,null,"",""]
[null,null,null,null,null,null,null,null,null,"",""]
[null,null,null,null,null,null,null,null,null,"",""]
[null,null,null,null,null,null,null,null,null,"",""]
[null,null,null,null,null,null,null,null,null,"",""]
[null,null,null,null,null,null,null,null,null,"",""]
[null,null,null,null,null,null,null,null,null,"",""]
[null,null,null,null,null,null,null,null,null,"",""]
[null,null,null,null,null,null,null,null,null,"",""]
[null,null,null,null,null,null,null,null,null,"",""]
[null,null,null,null,null,null,null,null,null,"",""]
[null,null,null,null,null,null,null,null,null,"",""]
[null,null,null,null,null,null,null,null,null,"",""]
[null,null,null,null,null,null,null,null,null,"",""]
[null,null,null,null,null,null,null,null,null,{"$f":"IF(INDIRECT(\"Задания!A\"&ROW()-12,TRUE)<>0,INDIRECT(\"Задания!A\"&ROW()-12,TRUE),\"\")","v":""},{"$f":"IF(INDIRECT(\"Задания!B\"&ROW()-12,TRUE)<>0,INDIRECT(\"Задания!B\"&ROW()-12,TRUE),\"\")","v":""}]
[null,null,null,null,null,null,null,null,null,"",""]
[null,null,null,null,null,null,null,null,null,"",""]
[null,null,null,null,null,null,null,null,null,"",""]
[null,null,null,null,null,null,null,null,null,"",""]
[null,null,null,null,null,null,null,null,null,"",""]
[null,null,null,null,null,null,null,null,null,"",""]
[null,null,null,null,null,null,null,null,null,"",""]
[null,null,null,null,null,null,null,null,null,"",""]
[null,null,null,null,null,null,null,null,null,"",""]
[null,null,null,null,null,null,null,null,null,"",""]
[null,null,null,null,null,null,null,null,null,"",""]
[null,null,null,null,null,null,null,null,null,"",""]
[null,null,null,null,null,null,null,null,null,"",""]
[null,null,null,null,null,null,null,null,null,"",""]
[null,null,null,null,null,null,null,null,null,"",""]
[null,null,null,null,null,null,null,null,null,"",""]
[null,null,null,null,null,null,null,null,null,"",""]
[null,null,null,null,null,null,null,null,null,"",""]
[null,null,null,null,null,null,null,null,null,"",""]
[null,null,null,null,null,null,null,null,null,"",""]
[null,null,null,null,null,null,null,null,null,"",""]
[null,null,null,null,null,null,null,null,null,"",""]
[null,null,null,null,null,null,null,null,null,"",""]
[null,null,null,null,null,null,null,null,null,"",""]
[null,null,null,null,null,null,null,null,null,"",""]
[null,null,null,null,null,null,null,null,null,"",""]
[null,null,null,null,null,null,null,null,null,"",""]
[null,null,null,null,null,null,null,null,null,"",""]
[null,null,null,null,null,null,null,null,null,"",""]
[null,null,null,null,null,null,null,null,null,"",""]
[null,null,null,null,null,null,null,null,null,"",""]
[null,null,null,null,null,null,null,null,null,"",""]
[null,null,null,null,null,null,null,null,null,"",""]
[null,null,null,null,null,null,null,null,null,"",""]
[null,null,null,null,null,null,null,null,null,"",""]
[null,null,null,null,null,null,null,null,null,"",""]
[null,null,null,null,null,null,null,null,null,"",""]
[null,null,null,null,null,null,null,null,null,"",""]
[null,null,null,null,null,null,null,null,null,"",""]
[null,null,null,null,null,null,null,null,null,"",""]
[null,null,null,null,null,null,null,null,null,"",""]
[null,null,null,null,null,null,null,null,null,"",""]
[null,null,null,null,null,null,null,null,null,"",""]
[null,null,null,null,null,null,null,null,null,"",""]
[null,null,null,null,null,null,null,null,null,"",""]
[null,null,null,null,null,null,null,null,null,"",""]
[null,null,null,null,null,null,null,null,null,"",""]
[null,null,null,null,null,null,null,null,null,"",""]
[null,null,null,null,null,null,null,null,null,"",""]
[null,null,null,null,null,null,null,null,null,"",""]
[null,null,null,null,null,null,null,null,null,"",""]
[null,null,null,null,null,null,null,null,null,"",""]
[null,null,null,null,null,null,null,null,null,"",""]
[null,null,null,null,null,null,null,null,null,"",""]
[null,null,null,null,null,null,null,null,null,"",""]
[null,null,null,null,null,null,null,null,null,"",""]
[null,null,null,null,null,null,null,null,null,"",""]
[null,null,null,null,null,null,null,null,null,"",""]
[null,null,null,null,null,null,null,null,null,"",""]
[null,null,null,null,null,null,null,null,null,"",""]
[null,null,null,null,null,null,null,null,null,"",""]
[null,null,null,null,null,null,null,null,null,"",""]
[null,null,null,null,null,null,null,null,null,"",""]
[null,null,null,null,null,null,null,null,null,{"$f":"IF(INDIRECT(\"Задания!A\"&ROW()-12,TRUE)<>0,INDIRECT(\"Задания!A\"&ROW()-12,TRUE),\"\")","v":""},{"$f":"IF(INDIRECT(\"Задания!B\"&ROW()-12,TRUE)<>0,INDIRECT(\"Задания!B\"&ROW()-12,TRUE),\"\")","v":""}]
[null,null,null,null,null,null,null,null,null,"",""]
[null,null,null,null,null,null,null,null,null,"",""]
[null,null,null,null,null,null,null,null,null,"",""]
[null,null,null,null,null,null,null,null,null,"",""]
[null,null,null,null,null,null,null,null,null,"",""]
[null,null,null,null,null,null,null,null,null,"",""]
[null,null,null,null,null,null,null,null,null,"",""]
[null,null,null,null,null,null,null,null,null,"",""]
[null,null,null,null,null,null,null,null,null,"",""]
[null,null,null,null,null,null,null,null,null,"",""]
[null,null,null,null,null,null,null,null,null,"",""]
[null,null,null,null,null,null,null,null,null,"",""]
[null,null,null,null,null,null,null,null,null,"",""]
[null,null,null,null,null,null,null,null,null,"",""]
[null,null,null,null,null,null,null,null,null,"",""]
[null,null,null,null,null,null,null,null,null,"",""]
[null,null,null,null,null,null,null,null,null,"",""]
[null,null,null,null,null,null,null,null,null,"",""]
[null,null,null,null,null,null,null,null,null,"",""]
[null,null,null,null,null,null,null,null,null,"",""]
[null,null,null,null,null,null,null,null,null,"",""]
[null,null,null,null,null,null,null,null,null,"",""]
[null,null,null,null,null,null,null,null,null,"",""]
[null,null,null,null,null,null,null,null,null,"",""]
[null,null,null,null,null,null,null,null,null,"",""]
[null,null,null,null,null,null,null,null,null,"",""]
[null,null,null,null,null,null,null,null,null,"",""]
[null,null,null,null,null,null,null,null,null,"",""]
[null,null,null,null,null,null,null,null,null,"",""]
[null,null,null,null,null,null,null,null,null,"",""]
[null,null,null,null,null,null,null,null,null,"",""]
[null,null,null,null,null,null,null,null,null,"",""]
[null,null,null,null,null,null,null,null,null,"",""]
[null,null,null,null,null,null,null,null,null,"",""]
[null,null,null,null,null,null,null,null,null,"",""]
[null,null,null,null,null,null,null,null,null,"",""]
[null,null,null,null,null,null,null,null,null,"",""]
[null,null,null,null,null,null,null,null,null,"",""]
[null,null,null,null,null,null,null,null,null,"",""]
[null,null,null,null,null,null,null,null,null,"",""]
[null,null,null,null,null,null,null,null,null,"",""]
[null,null,null,null,null,null,null,null,null,"",""]
[null,null,null,null,null,null,null,null,null,"",""]
[null,null,null,null,null,null,null,null,null,"",""]
[null,null,null,null,null,null,null,null,null,"",""]
[null,null,null,null,null,null,null,null,null,"",""]
[null,null,null,null,null,null,null,null,null,"",""]
[null,null,null,null,null,null,null,null,null,"",""]
[null,null,null,null,null,null,null,null,null,"",""]
[null,null,null,null,null,null,null,null,null,"",""]
[null,null,null,null,null,null,null,null,null,"",""]
[null,null,null,null,null,null,null,null,null,"",""]
[null,null,null,null,null,null,null,null,null,"",""]
[null,null,null,null,null,null,null,null,null,"",""]
[null,null,null,null,null,null,null,null,null,"",""]
[null,null,null,null,null,null,null,null,null,"",""]
[null,null,null,null,null,null,null,null,null,"",""]
[null,null,null,null,null,null,null,null,null,"",""]
[null,null,null,null,null,null,null,null,null,"",""]
[null,null,null,null,null,null,null,null,null,"",""]
[null,null,null,null,null,null,null,null,null,"",""]
[null,null,null,null,null,null,null,null,null,"",""]
[null,null,null,null,null,null,null,null,null,"",""]
[null,null,null,null,null,null,null,null,null,{"$f":"IF(INDIRECT(\"Задания!A\"&ROW()-12,TRUE)<>0,INDIRECT(\"Задания!A\"&ROW()-12,TRUE),\"\")","v":""},{"$f":"IF(INDIRECT(\"Задания!B\"&ROW()-12,TRUE)<>0,INDIRECT(\"Задания!B\"&ROW()-12,TRUE),\"\")","v":""}]
[null,null,null,null,null,null,null,null,null,"",""]
[null,null,null,null,null,null,null,null,null,"",""]
[null,null,null,null,null,null,null,null,null,"",""]
[null,null,null,null,null,null,null,null,null,"",""]
[null,null,null,null,null,null,null,null,null,"",""]
[null,null,null,null,null,null,null,null,null,"",""]
[null,null,null,null,null,null,null,null,null,"",""]
[null,null,null,null,null,null,null,null,null,"",""]
[null,null,null,null,null,null,null,null,null,"",""]
[null,null,null,null,null,null,null,null,null,"",""]
[null,null,null,null,null,null,null,null,null,"",""]
[null,null,null,null,null,null,null,null,null,"",""]
[null,null,null,null,null,null,null,null,null,"",""]
[null,null,null,null,null,null,null,null,null,"",""]
[null,null,null,null,null,null,null,null,null,"",""]
[null,null,null,null,null,null,null,null,null,"",""]
[null,null,null,null,null,null,null,null,null,"",""]
[null,null,null,null,null,null,null,null,null,"",""]
[null,null,null,null,null,null,null,null,null,"",""]
[null,null,null,null,null,null,null,null,null,"",""]
[null,null,null,null,null,null,null,null,null,"",""]
[null,null,null,null,null,null,null,null,null,"",""]
[null,null,null,null,null,null,null,null,null,"",""]
[null,null,null,null,null,null,null,null,null,"",""]
[null,null,null,null,null,null,null,null,null,"",""]
[null,null,null,null,null,null,null,null,null,"",""]
[null,null,null,null,null,null,null,null,null,"",""]
[null,null,null,null,null,null,null,null,null,"",""]
[null,null,null,null,null,null,null,null,null,"",""]
[null,null,null,null,null,null,null,null,null,"",""]
[null,null,null,null,null,null,null,null,null,"",""]
[null,null,null,null,null,null,null,null,null,"",""]
[null,null,null,null,null,null,null,null,null,"",""]
[null,null,null,null,null,null,null,null,null,"",""]
[null,null,null,null,null,null,null,null,null,"",""]
[null,null,null,null,null,null,null,null,null,"",""]
[null,null,null,null,null,null,null,null,null,"",""]
[null,null,null,null,null,null,null,null,null,"",""]
[null,null,null,null,null,null,null,null,null,"",""]
[null,null,null,null,null,null,null,null,null,"",""]
[null,null,null,null,null,null,null,null,null,"",""]
[null,null,null,null,null,null,null,null,null,"",""]
[null,null,null,null,null,null,null,null,null,"",""]
[null,null,null,null,null,null,null,null,null,"",""]
[null,null,null,null,null,null,null,null,null,"",""]
[null,null,null,null,null,null,null,null,null,"",""]
[null,null,null,null,null,null,null,null,null,"",""]
[null,null,null,null,null,null,null,null,null,"",""]
[null,null,null,null,null,null,null,null,null,"",""]
[null,null,null,null,null,null,null,null,null,"",""]
[null,null,null,null,null,null,null,null,null,"",""]
[null,null,null,null,null,null,null,null,null,"",""]
[null,null,null,null,null,null,null,null,null,"",""]
[null,null,null,null,null,null,null,null,null,"",""]
[null,null,null,null,null,null,null,null,null,"",""]
[null,null,null,null,null,null,null,null,null,"",""]
[null,null,null,null,null,null,null,null,null,"",""]
[null,null,null,null,null,null,null,null,null,"",""]
[null,null,null,null,null,null,null,null,null,"",""]
[null,null,null,null,null,null,null,null,null,"",""]
[null,null,null,null,null,null,null,null,null,"",""]
[null,null,null,null,null,null,null,null,null,"",""]
[null,null,null,null,null,null,null,null,null,"",""]
[null,null,null,null,null,null,null,null,null,{"$f":"IF(INDIRECT(\"Задания!A\"&ROW()-12,TRUE)<>0,INDIRECT(\"Задания!A\"&ROW()-12,TRUE),\"\")","v":""},{"$f":"IF(INDIRECT(\"Задания!B\"&ROW()-12,TRUE)<>0,INDIRECT(\"Задания!B\"&ROW()-12,TRUE),\"\")","v":""}]
[null,null,null,null,null,null,null,null,null,"",""]
[null,null,null,null,null,null,null,null,null,"",""]
[null,null,null,null,null,null,null,null,null,"",""]
[null,null,null,null,null,null,null,null,null,"",""]
[null,null,null,null,null,null,null,null,null,"",""]
[null,null,null,null,null,null,null,null,null,"",""]
[null,null,null,null,null,null,null,null,null,"",""]
[null,null,null,null,null,null,null,null,null,"",""]
[null,null,null,null,null,null,null,null,null,"",""]
[null,null,null,null,null,null,null,null,null,"",""]
[null,null,null,null,null,null,null,null,null,"",""]
[null,null,null,null,null,null,null,null,null,"",""]
[null,null,null,null,null,null,null,null,null,"",""]
[null,null,null,null,null,null,null,null,null,"",""]
[null,null,null,null,null,null,null,null,null,"",""]
[null,null,null,null,null,null,null,null,null,"",""]
[null,null,null,null,null,null,null,null,null,"",""]
[null,null,null,null,null,null,null,null,null,"",""]
[null,null,null,null,null,null,null,null,null,"",""]
[null,null,null,null,null,null,null,null,null,"",""]
[null,null,null,null,null,null,null,null,null,"",""]
[null,null,null,null,null,null,null,null,null,"",""]
[null,null,null,null,null,null,null,null,null,"",""]
[null,null,null,null,null,null,null,null,null,"",""]
[null,null,null,null,null,null,null,null,null,"",""]
[null,null,null,null,null,null,null,null,null,"",""]
[null,null,null,null,null,null,null,null,null,"",""]
[null,null,null,null,null,null,null,null,null,"",""]
[null,null,null,null,null,null,null,null,null,"",""]
[null,null,null,null,null,null,null,null,null,"",""]
[null,null,null,null,null,null,null,null,null,"",""]
[null,null,null,null,null,null,null,null,null,"",""]
[null,null,null,null,null,null,null,null,null,"",""]
[null,null,null,null,null,null,null,null,null,"",""]
[null,null,null,null,null,null,null,null,null,"",""]
[null,null,null,null,null,null,null,null,null,"",""]
[null,null,null,null,null,null,null,null,null,"",""]

{"sheet":"Задания","index":1,"n_rows":191,"n_cols":3,"rows_kept":191,"cut":false,"hidden":false,"merged":[]}
["Дата","Задание","Месяц Год"]
["2022-01-01","Изменение в работе! С 1 января 2022 года ФСС напрямую будет выплачивать сотрудникам больничные и другие пособия,  закон от 30.04.2021 № 126-ФЗ","1\\1900"]
["2022-01-10","Последний день, чтобы сдать отчет  П-4 (НЗ) за IV квартал 2021 года в Росстат. Отчет сдают организации, в которых работает более 15 человек. Форма отчета — Приложение 12 к приказу Росстата от 24.07.2020 № 412"]
["2022-01-10","Последний день, чтобы сдать отчет 3-Ф за декабрь 2021 года  в Росстат. Отчет сдают организации с задолженностью по зарплате. Форма отчета — Приложение 6 к приказу Росстата от 24.07.2020 № 412"]
["2022-01-10","Последний день, чтобы сдать отчет 1-ПР за декабрь 2021 года  в Росстат. Отчет сдают организации, в которых в отчетном месяце были забастовки. Форма отчета — Приложение 5 к приказу Росстата от 24.07.2020 № 412"]
["2022-01-10","Последний день, чтобы сдать отчет ЗП-образование за IV квартал 2021 года  в Росстат. Отчет сдают Государственные и муниципальные образовательные организации. Форма отчета — Приложение 9 к приказу Росстата от 24.07.2020 № 412",{"$error":"#REF!"}]
["2022-01-10","Последний день, чтобы сдать отчет ЗП-наука за IV квартал 2021 года в Росстат. Отчет сдают Государственные и муниципальные учреждения, которые занимаются научными исследованиями и разработками. Форма отчета — Приложение 10 к приказу Росстата от 24.07.2020 № 412","1\\1900"]
["2022-01-10","Последний день чтобы сдать отчет ЗП-здрав за IV квартал 2021 года  в Росстат. Отчет сдают Государственные и муниципальные учреждения, которые работают в сфере здравоохранения. Форма отчета Приложение 7 к приказу Росстата от 24.07.2020 № 412","1\\1900"]
["2022-01-10","Последний день, чтобы сдать отчет ЗП-соц за IV квартал 2021 года в Росстат. Отчет сдают Государственные и муниципальные учреждения, которые работают  в сфере социального обслуживания. Форма отчета — Приложение 11 к приказу Росстата от 24.07.2020 № 412","1\\1900"]
["2022-01-10","Последний день, чтобы сдать отчет ЗП-культура за IV квартал 2021 года в Росстат. Отчет сдают Государственные и муниципальные учреждения, которые работают в сфере культуры и искусства. Форма отчета — Приложение 8 к приказу Росстата от 24.07.2020 № 412","1\\1900"]
["2022-01-10","Сдать отчет о наличии вакансий в службу занятости. Отчет сдают все организации. Форма отчета и даты отличаются в регионах ","1\\1900"]
["2022-01-10","Сдать отчет о квотируемых местах для инвалидов в службу занятости. Отчет сдают организации, которые обязаны квотировать рабочие места. Форма отчета и даты отличаются в регионах ","1\\1900"]
["2022-01-17","Последний день, чтобы сдать отчет П-4 за IV квартал 2021 года в Росстат. Отчет сдают организации, в которых работает менее 15 человек и годовой оборот которых менее 800 млн руб. Форма отчета — Приложение 3 к приказу Росстата от 24.07.2020 № 412","1\\1900"]
["2022-01-17","Последний день, чтобы сдать отчет  П-4 за декабрь 2021 года в Росстат. Отчет сдают организации, в которых работает более 15 человек и годовой оборот которых более 800 млн руб.. Форма отчета — Приложение 3 к приказу Росстата от 24.07.2020 № 412","1\\1900"]
["2022-01-17","Последний день, чтобы сдать отчет  СЗВ-М за декабрь 2021 года в ПФР. Отчет сдают все организации. Форма отчета — постановление Правления ПФР от 15.04.2021 № 103п","1\\1900"]
["2022-01-17","Последний день, чтобы сдать отчет  СЗВ-ТД за декабрь 2021 года в ПФР. Отчет сдают все организации, в которых были кадровые мероприятия в отчетном месяце. О приемах и увольнениях отчитываться нужно не позднее следующего рабочего дня после даты, когда издали приказ. Форма отчета — Постановление Правления Пенсионного фонда от 25.12.2019 № 730п","1\\1900"]
["2022-01-21","Последний день, чтобы сдать отчет  1-Т (условия труда) за 2021 год в Росстат. Отчет сдают организации, которые попали в выборку Росстата. Проверить, нужно ли сдавать отчет, можно на сайте службы. Форма отчета — Приложение 1 к Приказу Росстата от 30.07.2021 № 457","1\\1900"]
["2022-01-25","Последний день, чтобы сдать отчет 7-травматизм за 2021 год  в Росстат. Отчет сдают все, кроме малого бизнеса и представителей определенных видов деятельности. Форма отчета — Приложение к Приказу Росстата от 22.06.2020 № 326","1\\1900"]
["2022-01-31","Последний день, чтобы сдать № 1-Т «Сведения о численности и заработной плате работников» за 2021 год в Росстат. Отчет сдают организации, в которых работает более 15 человек и годовой оборот которых более 800 млн руб.. Форма отчета — Приложение 2 к Приказу Росстата от 30.07.2021 № 457","1\\1900"]
["2022-02-01","Сдать отчет о наличии вакансий в службу занятости. Отчет сдают все организации. Форма отчета и даты отличаются в регионах ","1\\1900"]
["2022-02-01","Сдать отчет о квотируемых местах для инвалидов в службу занятости. Отчет сдают организации, которые обязаны квотировать рабочие места. Форма отчета и даты отличаются в регионах ","1\\1900"]
["2022-02-02","Последний день, чтобы сдать отчет 1-ПР за январь 2022 года в Росстат. Отчет сдают организации, в которых в отчетном месяце были забастовки. Форма отчета — Приложение 7 к Приказу Росстата от 30.07.2021 № 457","1\\1900"]
["2022-02-02","Последний день, чтобы сдать отчет 3-Ф за январь 2022 года  в Росстат. Отчет сдают организации с задолженностью по зарплате. Форма отчета — Приложение 8 к Приказу Росстата от 30.07.2021 № 457","1\\1900"]
["2022-02-03","Последний день, чтобы сдать отчет 1-кадры в Росстат. Отчет сдают раз в 3-4 года все, кроме малого бизнеса и представителей определенных видов деятельности. Узнать, должна ли ваша организация сдавать отчет в текущем году, можно на сайте Росстата. Форма отчета — Приложение 14 к приказу Росстата от 24.07.2020 № 412","1\\1900"]
["2022-02-15","Последний день, чтобы сдать отчет П-4 за январь 2022 года в Росстат. Отчет сдают организации, в которых работает более 15 человек и годовой оборот которых более 800 млн руб. Форма отчета — Приложение 15 к Приказу Росстата от 30.07.2021 № 457","1\\1900"]
["2022-02-15","Последний день, чтобы сдать отчет СЗВ-М за январь 2022 года в ПФР. Отчет сдают все организации. Форма отчета — постановление Правления ПФР от 15.04.2021 № 103п","1\\1900"]
["2022-02-15","Последний день, чтобы сдать отчет СЗВ-ТД за январь 2022 года в ПФР. Отчет сдают все организации, в которых были кадровые мероприятия в отчетном месяце. О приемах и увольнениях отчитываться нужно не позднее следующего рабочего дня после даты, когда издали приказ. Форма отчета — Постановление Правления Пенсионного фонда от 25.12.2019 № 730п","1\\1900"]
["2022-02-22","Сократите на час рабочий день, статья 95 ТК","1\\1900"]
["2022-03-01","Сдать отчет о наличии вакансий в службу занятости. Отчет сдают все организации. Форма отчета и даты отличаются в регионах ","1\\1900"]
["2022-03-01","Сдать отчет о квотируемых местах для инвалидов в службу занятости. Отчет сдают организации, которые обязаны квотировать рабочие места. Форма отчета и даты отличаются в регионах ","1\\1900"]
["2022-03-01","Последний день, чтобы сдать отчет 1-Т(ГС) за 2021 год в Росстат. Отчет сдают государственные органы. Форма отчета — Приложение 3 к Приказу Росстата от 30.07.2021 № 457","1\\1900"]
["2022-03-01","Последний день, чтобы сдать отчет 1-Т(МС) за 2021 год в Росстат. Отчет сдают Органы местного самоуправления. Форма отчета — Приложение 4 к Приказу Росстата от 30.07.2021 № 457","1\\1900"]
["2022-03-01","Последний день, чтобы сдать отчет СЗВ-СТАЖ за 2021 год в ПФР. Отчет сдают все организации, в которых были кадровые мероприятия в отчетном месяце. О приемах и увольнениях отчитываться нужно не позднее следующего рабочего дня после даты, когда издали приказ. Форма отчета — Постановление ПФР от 06.12.2018 № 507п","1\\1900"]
["2022-03-02","Последний день, чтобы сдать отчет 1-ПР за февраль 2022 года в Росстат. Отчет сдают организации, в которых в отчетном месяце были забастовки. Форма отчета — Приложение 7 к Приказу Росстата от 30.07.2021 № 457","1\\1900"]
["2022-03-02","Последний день, чтобы сдать отчет 3-Ф за февраль 2022 года в Росстат. Отчет сдают организации с задолженностью по зарплате. Форма отчета — Приложение 8 к Приказу Росстата от 30.07.2021 № 457","1\\1900"]
["2022-03-05","Не забудьте выйти на работу и сократите на час рабочий день, статья 95 ТК, Постановление Правительства от 16.09.2021 № 1564","1\\1900"]
["2022-03-15","Последний день, чтобы сдать отчет  П-4 за февраль 2022 года в Росстат. Отчет сдают организации, в которых работает более 15 человек и годовой оборот которых более 800 млн руб. Форма отчета — Приложение 15 к Приказу Росстата от 30.07.2021 № 457","1\\1900"]
["2022-03-15","Последний день, чтобы сдать отчет СЗВ-М за февраль 2022 года в ПФР. Отчет сдают все организации. Форма отчета — постановлением Правления ПФР от 15.04.2021 № 103п","1\\1900"]
["2022-03-15","Последний день, чтобы сдать отчет СЗВ-ТД за февраль 2022 года в ПФР. Отчет сдают все организации, в которых были кадровые мероприятия в отчетном месяце. О приемах и увольнениях отчитываться нужно не позднее следующего рабочего дня после даты, когда издали приказ. Форма отчета — Постановление Правления Пенсионного фонда от 25.12.2019 № 730п","1\\1900"]
["2022-04-04","Сдать отчет о наличии вакансий в службу занятости. Отчет сдают все организации. Форма отчета и даты отличаются в регионах ","1\\1900"]
["2022-04-04","Сдать отчет о квотируемых местах для инвалидов в службу занятости. Отчет сдают организации, которые обязаны квотировать рабочие места. Форма отчета и даты отличаются в регионах ","1\\1900"]
["2022-04-04","Последний день, чтобы сдать отчет 1-ПР за март 2022 года  в Росстат. Отчет сдаю организации, в которых в отчетном месяце были забастовки. Форма отчета — Приложение 7 к Приказу Росстата от 30.07.2021 № 457","1\\1900"]
["2022-04-04","Последний день, чтобы сдать отчет 3-Ф март 2022 года  в Росстат. Отчет сдают организации с задолженностью по зарплате. Форма отчета — Приложение 8 к Приказу Росстата от 30.07.2021 № 457","1\\1900"]
["2022-04-08","Последний день, чтобы сдать отчет П-4 (НЗ) за I квартал 2022 года в Росстат. Отчет сдают организации, в которых работает более 15 человек. Форма отчета — Приложение 14 к Приказу Росстата от 30.07.2021 № 457","1\\1900"]
["2022-04-11","Последний день, чтобы сдать отчет ЗП-образование за I квартал 2022 года в Росстат. Отчет сдают Государственные и муниципальные образовательные организации. Форма отчета — Приложение 11 к Приказу Росстата от 30.07.2021 № 457","1\\1900"]
["2022-04-11","Последний день, чтобы сдать отчет ЗП-наука за I квартал 2022 года в Росстат. Отчет сдают Государственные и муниципальные учреждения, которые занимаются научными исследованиями и разработками. Форма отчета — Приложение 12 к Приказу Росстата от 30.07.2021 № 457","1\\1900"]
["2022-04-11","Последний день, чтобы сдать отчет ЗП-здрав за I квартал 2022 года  в Росстат. Отчет сдают Государственные и муниципальные учреждения, которые работают в сфере здравоохранения. Форма отчета — Приложение 7 к приказу Росстата от 24.07.2020 № 412","1\\1900"]
["2022-04-11","Последний день, чтобы сдать отчет ЗП-соц за I квартал 2022 года  в Росстат. Отчет сдают  Государственные и муниципальные учреждения, которые работают  в сфере социального обслуживания. Форма отчета — Приложение 11 к приказу Росстата от 24.07.2020 № 412","1\\1900"]
["2022-04-11","Последний день, чтобы сдать отчет ЗП-культура за I квартал 2022 года в Росстат. Отчет сдают Государственные и муниципальные учреждения, которые работают в сфере культуры и искусства. Форма отчета — Приложение 8 к приказу Росстата от 24.07.2020 № 412","1\\1900"]
["2022-04-15","Последний день, чтобы сдать отчет  П-4 за март 2022 года в Росстат. Отчет сдают организации, в которых работает более 15 человек и годовой оборот которых более 800 млн руб. Форма отчета — Приложение 15 к Приказу Росстата от 30.07.2021 № 457","1\\1900"]
["2022-04-15","Последний день, чтобы сдать отчет П-4 за I квартал 2022 года в Росстат. Отчет сдают организации, в которых работает менее 15 человек и годовой оборот которых менее 800 млн руб. Форма отчета — Приложение 15 к Приказу Росстата от 30.07.2021 № 457","1\\1900"]
["2022-04-15","Последний день, чтобы сдать отчет СЗВ-М за март 2022 года в ПФР. Отчет сдают все организации. Форма отчета — постановление Правления ПФР от 15.04.2021 № 103п","1\\1900"]
["2022-04-15","Последний день, чтобы сдать отчет СЗВ-ТД за  март 2022 года в ПФР. Отчет сдают все организации, в которых были кадровые мероприятия в отчетном месяце. О приемах и увольнениях отчитываться нужно не позднее следующего рабочего дня после даты, когда издали приказ. Форма отчета — Постановление Правления Пенсионного фонда от 25.12.2019 № 730п","1\\1900"]
["2022-05-04","Сдать отчет о наличии вакансий в службу занятости. Отчет сдают все организации. Форма отчета и даты отличаются в регионах ","1\\1900"]
["2022-05-04","Сдать отчет о квотируемых местах для инвалидов в службу занятости. Отчет сдают организации, которые обязаны квотировать рабочие места. Форма отчета и даты отличаются в регионах ","1\\1900"]
["2022-05-04","Последний день, чтобы сдать отчет 1-ПР за апрель 2022 года в Росстат. Отчет сдают организации, в которых в отчетном месяце были забастовки. Форма отчета — Приложение 7 к Приказу Росстата от 30.07.2021 № 457","1\\1900"]
["2022-05-04","Последний день, чтобы сдать отчет 3-Ф за апрель 2022 года в Росстат. Отчет сдают организации с задолженностью по зарплате. Форма отчета — Приложение 8 к Приказу Росстата от 30.07.2021 № 457","1\\1900"]
["2022-05-16","Последний день, чтобы сдать отчет П-4 за апрель 2022 года в Росстат. Отчет сдают организации, в которых работает более 15 человек и годовой оборот которых более 800 млн руб. Форма отчета — Приложение 15 к Приказу Росстата от 30.07.2021 № 457","1\\1900"]
["2022-05-16","Последний день, чтобы сдать отчет  СЗВ-М за апрель 2022 года в ПФР. Отчет сдают все организации. Форма отчета — постановление Правления ПФР от 15.04.2021 № 103п","1\\1900"]
["2022-05-16","Последний день, чтобы сдать отчет СЗВ-ТД за апрель 2022 года в ПФР. Отчет сдают все организации, в которых были кадровые мероприятия в отчетном месяце. О приемах и увольнениях отчитываться нужно не позднее следующего рабочего дня после даты, когда издали приказ. Форма отчета — Постановление Правления Пенсионного фонда от 25.12.2019 № 730п","1\\1900"]
["2022-05-23","Последний день, чтобы сдать отчет 1 (рабочая сила)  в Росстат. Отчет сдают организации, которые занимаются определенной деятельностью. Подробный список есть на титульном листе отчета. Форма отчета — Приложение 6 к Приказу Росстата от 30.07.2021 № 457","1\\1900"]
["2022-06-01","Сдать отчет о наличии вакансий в службу занятости. Отчет сдают все организации. Форма отчета и даты отличаются в регионах ","1\\1900"]
["2022-06-01","Сдать отчет о квотируемых местах для инвалидов в службу занятости. Отчет сдают организации, которые обязаны квотировать рабочие места. Форма отчета и даты отличаются в регионах ","1\\1900"]
["2022-06-02","Последний день, чтобы сдать отчет 1-ПР за май 2022 года в Росстат. Отчет сдают организации, в которых в отчетном месяце были забастовки. Форма отчета — Приложение 7 к Приказу Росстата от 30.07.2021 № 457","1\\1900"]
["2022-06-02","Последний день, чтобы сдать отчет 3-Ф за май 2022 года  в Росстат. Отчет сдают организации с задолженностью по зарплате. Форма отчета — Приложение 8 к Приказу Росстата от 30.07.2021 № 457","1\\1900"]
["2022-06-15","Последний день, чтобы сдать отчет П-4 за май 2022 года в Росстат. Отчет сдают организации, в которых работает более 15 человек и годовой оборот которых более 800 млн руб. Форма отчета — Приложение 15 к Приказу Росстата от 30.07.2021 № 457","1\\1900"]
["2022-06-15","Последний день, чтобы сдать отчет  СЗВ-М за май 2022 года в ПФР. Отчет сдают все организации. Форма отчета — постановление Правления ПФР от 15.04.2021 № 103п","1\\1900"]
["2022-06-15","Последний день, чтобы сдать отчет СЗВ-ТД за май 2022 года в ПФР. Отчет сдают все организации, в которых были кадровые мероприятия в отчетном месяце. О приемах и увольнениях отчитываться нужно не позднее следующего рабочего дня после даты, когда издали приказ. Форма отчета — Постановление Правления Пенсионного фонда от 25.12.2019 № 730п","1\\1900"]
["2022-07-01","Сдать отчет о наличии вакансий в службу занятости. Отчет сдают все организации. Форма отчета и даты отличаются в регионах ","1\\1900"]
["2022-07-01","Сдать отчет о квотируемых местах для инвалидов в службу занятости. Отчет сдают организации, которые обязаны квотировать рабочие места. Форма отчета и даты отличаются в регионах ","1\\1900"]
["2022-07-04","Последний день, чтобы сдать отчет 1-ПР за июнь 2022 года  в Росстат. Отчет сдают организации, в которых в отчетном месяце были забастовки. Форма отчета — Приложение 7 к Приказу Росстата от 30.07.2021 № 457","1\\1900"]
["2022-07-04","Последний день, чтобы сдать отчет 3-Ф за июнь 2022 года  в Росстат. Отчет сдают организации с задолженностью по зарплате. Форма отчета — Приложение 8 к Приказу Росстата от 30.07.2021 № 457","1\\1900"]
["2022-07-08","Последний день, чтобы сдать отчет П-4 за II квартал 2022 года  в Росстат. Отчет сдают организации, в которых работает менее 15 человек и годовой оборот которых менее 800 млн руб. Форма отчета Приложение 15 к Приказу Росстата от 30.07.2021 № 457","1\\1900"]
["2022-07-11","Последний день, чтобы сдать отчет ЗП-образование за II квартал 2022 года в Росстат. Отчет сдают Государственные и муниципальные образовательные организации. Форма отчета — Приложение 11 к Приказу Росстата от 30.07.2021 № 457","1\\1900"]
["2022-07-11","Последний день, чтобы сдать отчет ЗП-наука за II  квартал 2022 года  в Росстат. Отчет сдают Государственные и муниципальные учреждения, которые занимаются научными исследованиями и разработками. Форма отчета — Приложение 12 к Приказу Росстата от 30.07.2021 № 457","1\\1900"]
["2022-07-11","Последний день, чтобы сдать отчет ЗП-здрав за II квартал 2022 года в Росстат. Отчет сдают Государственные и муниципальные учреждения, которые работают в сфере здравоохранения. Форма отчета — Приложение 7 к приказу Росстата от 24.07.2020 № 412","1\\1900"]
["2022-07-11","Последний день, чтобы сдать отчет ЗП-соц за II квартал 2022 года в Росстат. Отчет сдают организации Государственные и муниципальные учреждения, которые работают  в сфере социального обслуживания. Форма отчета — Приложение 11 к приказу Росстата от 24.07.2020 № 412","1\\1900"]
["2022-07-11","Последний день, чтобы сдать отчет ЗП-культура за II квартал 2022 года в Росстат. Отчет сдают  Государственные и муниципальные учреждения, которые работают в сфере культуры и искусства. Форма отчета — Приложение 8 к приказу Росстата от 24.07.2020 № 412","1\\1900"]
["2022-07-15","Последний день, чтобы сдать отчет П-4 за июнь 2022 года в Росстат. Отчет сдают организации, в которых работает более 15 человек и годовой оборот которых более 800 млн руб. Форма отчета — Приложение 15 к Приказу Росстата от 30.07.2021 № 457","1\\1900"]
["2022-07-15","Последний день, чтобы сдать отчет П-4 за II квартал 2022 года в Росстат. Отчет сдают организации, в которых работает менее 15 человек и годовой оборот которых менее 800 млн руб. Форма отчета — Приложение 15 к Приказу Росстата от 30.07.2021 № 457","1\\1900"]
["2022-07-15","Последний день, чтобы сдать отчет СЗВ-М за июнь 2022 года в ПФР. Отчет сдают все организации. Форма отчета — постановление Правления ПФР от 15.04.2021 № 103п","1\\1900"]
["2022-07-15","Последний день, чтобы сдать отчет СЗВ-ТД за июнь 2022 года в ПФР. Отчет сдают все организации, в которых были кадровые мероприятия в отчетном месяце. О приемах и увольнениях отчитываться нужно не позднее следующего рабочего дня после даты, когда издали приказ. Форма отчета — Постановление Правления Пенсионного фонда от 25.12.2019 № 730п","1\\1900"]
["2022-08-01","Сдать отчет о наличии вакансий в службу занятости. Отчет сдают все организации. Форма отчета и даты отличаются в регионах ","1\\1900"]
["2022-08-01","Сдать отчет о квотируемых местах для инвалидов в службу занятости. Отчет сдают организции, которые обязаны квотировать рабочие места. Форма отчета и даты отличаются в регионах ","1\\1900"]
["2022-08-02","Последний день, чтобы сдать отчет 1-ПР за июль 2022 года в Росстат. Отчет сдают организации, в которых в отчетном месяце были забастовки. Форма отчета — Приложение 7 к Приказу Росстата от 30.07.2021 № 457","1\\1900"]
["2022-08-02","Последний день, чтобы сдать отчет 3-Ф за июль 2022 года в Росстат. Отчет сдают организации с задолженностью по зарплате. Форма отчета — Приложение 8 к Приказу Росстата от 30.07.2021 № 457","1\\1900"]
["2022-08-15","Последний день, чтобы сдать отчет П-4 за июль 2022 года в Росстат. Отчет сдают организации, в которых работает более 15 человек и годовой оборот которых более 800 млн руб.  Форма отчета — Приложение 15 к Приказу Росстата от 30.07.2021 № 457","1\\1900"]
["2022-08-15","Последний день, чтобы сдать отчет СЗВ-М за июль 2022 года в ПФР. Отчет сдают все организации. Форма отчета — постановление Правления ПФР от 15.04.2021 № 103п","1\\1900"]
["2022-08-15","Последний день, чтобы сдать отчет СЗВ-ТД за июль 2022 года в ПФР. Отчет сдают все организации, в которых были кадровые мероприятия в отчетном месяце. О приемах и увольнениях отчитываться нужно не позднее следующего рабочего дня после даты, когда издали приказ. Форма отчета — Постановление Правления Пенсионного фонда от 25.12.2019 № 730п","1\\1900"]
["2022-09-01","Сдать отчет о наличии вакансий в службу занятости. Отчет сдают все организации. Форма отчета и даты отличаются в регионах ","1\\1900"]
["2022-09-01","Сдать отчет о квотируемых местах для инвалидов в службу занятости. Отчет сдают организации, которые обязаны квотировать рабочие места. Форма отчета и даты отличаются в регионах ","1\\1900"]
["2022-09-02","Последний день, чтобы сдать отчет 1-ПР за август 2022 года в Росстат. Организации, в которых в отчетном месяце были забастовки. Форма отчета — Приложение 7 к Приказу Росстата от 30.07.2021 № 457","1\\1900"]
["2022-09-02","Последний день, чтобы сдать отчет 3-Ф за август 2022 года в Росстат. Отчет сдают организации с задолженностью по зарплате. Форма отчета — Приложение 8 к Приказу Росстата от 30.07.2021 № 457","1\\1900"]
["2022-09-15","Последний день, чтобы сдать отчет СЗВ-М за август 2022 года в ПФР. Отчет сдают все организации. Форма отчета — Постановление Правления ПФР от 15.04.2021 № 103п","1\\1900"]
["2022-09-15","Последний день, чтобы сдать отчет СЗВ-ТД за август 2022 года в ПФР. Отчет сдают все организации, в которых были кадровые мероприятия в отчетном месяце. О приемах и увольнениях отчитываться нужно не позднее следующего рабочего дня после даты, когда издали приказ. Форма отчета — Постановление Правления ПФР от 25.12.2019 № 730п","1\\1900"]
["2022-09-15","Последний день, чтобы сдать отчет о военнообязанных мужского пола 45-и и 16-летнего возраста в военкомат. Отчет сдают все организации, в которых есть сотрудники указанного возраста. Форма отчета — Приложение 11 к Методическим рекомендациям, утв. Минобороны 11.07.2017.","1\\1900"]
["2022-10-03","Сдать отчет о наличии вакансий в службу занятости. Отчет сдают все организации. Форма отчета и даты отличаются в регионах ","1\\1900"]
["2022-10-03","Сдать отчет о квотируемых местах для инвалидов в службу занятости. Отчет сдают организации, которые обязаны квотировать рабочие места. Форма отчета и даты отличаются в регионах ","1\\1900"]
["2022-10-03","Последний день, чтобы сдать отчет 1-ПР за сентябрь 2022 года в Росстат. Отчет сдают организации, в которых в отчетном месяце были забастовки. Форма отчета — Приложение 7 к Приказу Росстата от 30.07.2021 № 457","1\\1900"]
["2022-10-03","Последний день, чтобы сдать отчет 3-Ф за сентябрь 2022 года в Росстат. Отчет сдают организации с задолженностью по зарплате. Форма отчета — Приложение 8 к Приказу Росстата от 30.07.2021 № 457","1\\1900"]
["2022-10-10","Последний день, чтобы сдать отчет П-4 (НЗ) за III квартал 2022 года в Росстат. Отчет сдают организации, в которых работает более 15 человек. Форма отчета — Приложение 14 к Приказу Росстата от 30.07.2021 № 457","1\\1900"]
["2022-10-10","Последний день, чтобы сдать отчет ЗП-образование за III квартал 2022 года в Росстат. Отчет сдают Государственные и муниципальные образовательные организации. Форма отчета — Приложение 11 к Приказу Росстата от 30.07.2021 № 457","1\\1900"]
["2022-10-10","Последний день, чтобы сдать отчет ЗП-наука за III квартал 2022 года в Росстат. Отчет сдают Государственные и муниципальные учреждения, которые занимаются научными исследованиями и разработками. Форма отчета — Приложение 12 к Приказу Росстата от 30.07.2021 № 457","1\\1900"]
["2022-10-10","Последний день, чтобы сдать отчет ЗП-здрав за III квартал 2022 года в Росстат. Отчет сдают Государственные и муниципальные учреждения, которые работают в сфере здравоохранения. Форма отчета — Приложение 7 к приказу Росстата от 24.07.2020 № 412","1\\1900"]
["2022-10-10","Последний день, чтобы сдать отчет ЗП-соц за II квартал 2022 года в Росстат. Отчет сдают Государственные и муниципальные учреждения, которые работают  в сфере социального обслуживания. Форма отчета — Приложение 11 к приказу Росстата от 24.07.2020 № 412","1\\1900"]
["2022-10-10","Последний день, чтобы сдать отчет ЗП-культура за III квартал 2022 года в Росстат. Отчет сдают Государственные и муниципальные учреждения, которые работают в сфере культуры и искусства. Форма отчета — Приложение 8 к приказу Росстата от 24.07.2020 № 412","1\\1900"]
["2022-10-17","Последний день, чтобы сдать отчет П-4 за III квартал 2022 года в Росстат. Отчет сдают организации, в которых работает менее 15 человек и годовой оборот которых менее 800 млн руб. Форма отчета — Приложение 15 к Приказу Росстата от 30.07.2021 № 457","1\\1900"]
["2022-10-17","Последний день, чтобы сдать отчет СЗВ-М за сентябрь 2022 года в ПФР. Отчет сдают все организации. Форма отчета — постановление Правления ПФР от 15.04.2021 № 103п","1\\1900"]
["2022-10-17","Последний день, чтобы сдать отчет СЗВ-ТД за сентябрь 2022 года в ПФР. Отчет сдают все организации, в которых были кадровые мероприятия в отчетном месяце. О приемах и увольнениях отчитываться нужно не позднее следующего рабочего дня после даты, когда издали приказ. Форма отчета — Постановление Правления ПФР от 25.12.2019 № 730п","1\\1900"]
["2022-10-25","Последний день, чтобы сдать отчет 1-ГС за 2022 год в Росстат.  Отчет сдают государственные органы. Форма отчета — Приложение 17 к Приказ Росстата от 15.07.2019 № 404\n","1\\1900"]
["2022-10-25","Последний день, чтобы сдать отчет 1-МС за 2022 год в Росстат.  Отчет сдают органы местного самоуправления. Форма отчета — Приложение  18 к Приказу Росстата от 15.07.2019 № 404\n","1\\1900"]
["2022-11-01","Сдать отчет о наличии вакансий в службу занятости. Отчет сдают все организации. Форма отчета и даты отличаются в регионах ","1\\1900"]
["2022-11-01","Сдать отчет о квотируемых местах для инвалидов в службу занятости. Отчет сдают организации, которые обязаны квотировать рабочие места. Форма отчета и даты отличаются в регионах ","1\\1900"]
["2022-11-01","Сдать отчет о гражданах, которые подлежат первоначальной постановке на военный учет в следующем году в военкомат. Отчет сдают организации, в которых есть такие работники. Форма отчета — приложение 11 к Методическим рекомендациям, утв. Минобороны 11.07.2017","1\\1900"]
["2022-11-02","Последний день, чтобы сдать отчет 1-ПР за октябрь 2022 года в Росстат. Организации, в которых в отчетном месяце были забастовки. Форма отчета — Приложение 7 к Приказу Росстата от 30.07.2021 № 457","1\\1900"]
["2022-11-02","Последний день, чтобы сдать отчет 3-Ф за октябрь 2022 года в Росстат. Отчет сдают организации с задолженностью по зарплате. Форма отчета — Приложение 8 к Приказу Росстата от 30.07.2021 № 457","1\\1900"]
["2022-11-03","Сократите на час рабочий день, статья 95 ТК","1\\1900"]
["2022-11-15","Последний день, чтобы сдать отчет СЗВ-М за октябрь 2022 года в ПФР. Отчет сдают все организации. Форма отчета — постановление Правления ПФР от 15.04.2021 № 103п","1\\1900"]
["2022-11-15","Последний день, чтобы сдать отчет СЗВ-ТД за октябрь 2022 года в ПФР. Отчет сдают все организации, в которых были кадровые мероприятия в отчетном месяце. О приемах и увольнениях отчитываться нужно не позднее следующего рабочего дня после даты, когда издали приказ. Форма отчета — Постановление Правления ПФР от 25.12.2019 № 730п","1\\1900"]
["2022-11-15","Последний день, чтобы сдать отчет 1-ПР за октябрь 2022 года в Росстат. Отчет сдают организации, в которых в отчетном месяце были забастовки. Форма отчета — Приложение 7 к Приказу Росстата от 30.07.2021 № 457","1\\1900"]
["2022-11-30","Последний день, чтобы сдать отчет 1-Т (проф) за 2022 год в Росстат. Отчет сдают организации за исключением малого бизнеса, которые попали в выборку Росстата. Форма отчета — Приложение 13 к Приказу Росстата от 24.07.2020 № 412","1\\1900"]
["2022-12-01","Сдать отчет о наличии вакансий в службу занятости. Отчет сдают все организации. Форма отчета и даты отличаются в регионах ","1\\1900"]
["2022-12-01","Сдать отчет о квотируемых местах для инвалидов в службу занятости. Отчет сдают организации, которые обязаны квотировать рабочие места. Форма отчета и даты отличаются в регионах ","1\\1900"]
["2022-12-02","Последний день, чтобы сдать отчет 1-ПР за ноябрь 2022 года в Росстат. Организации, в которых в отчетном месяце были забастовки. Форма отчета — Приложение 7 к Приказу Росстата от 30.07.2021 № 457","1\\1900"]
["2022-12-02","Последний день, чтобы сдать отчет 3-Ф за ноябрь 2022 года в Росстат. Отчет сдают организации с задолженностью по зарплате. Форма отчета — Приложение 8 к Приказу Росстата от 30.07.2021 № 457","1\\1900"]
["2022-12-15","Последний день, чтобы сдать отчет СЗВ-М за ноябрь 2022 года в ПФР. Отчет сдают все организации. Форма отчета — постановление Правления ПФР от 15.04.2021 № 103п","1\\1900"]
["2022-12-15","Последний день, чтобы сдать отчет СЗВ-ТД за ноябрь 2022 года в ПФР. Отчет сдают все организации, в которых были кадровые мероприятия в отчетном месяце. О приемах и увольнениях отчитываться нужно не позднее следующего рабочего дня после даты, когда издали приказ. Форма отчета — Постановление Правления ПФР от 25.12.2019 № 730п","1\\1900"]
["2022-12-15","Последний день, чтобы сдать отчет 1-ПР за ноябрь 2022 года в Росстат. Отчет сдают организации, в которых в отчетном месяце были забастовки. Форма отчета — Приложение 7 к Приказу Росстата от 30.07.2021 № 457","1\\1900"]
[null,null,"1\\1900"]
[null,null,"1\\1900"]
[null,null,"1\\1900"]
[null,null,"1\\1900"]
[null,null,"1\\1900"]
[null,null,"1\\1900"]
[null,null,"1\\1900"]
[null,null,"1\\1900"]
[null,null,"1\\1900"]
[null,null,"1\\1900"]
[null,null,"1\\1900"]
[null,null,"1\\1900"]
[null,null,"1\\1900"]
[null,null,"1\\1900"]
[null,null,"1\\1900"]
[null,null,"1\\1900"]
[null,null,"1\\1900"]
[null,null,"1\\1900"]
[null,null,"1\\1900"]
[null,null,"1\\1900"]
[null,null,"1\\1900"]
[null,null,"1\\1900"]
[null,null,"1\\1900"]
[null,null,"1\\1900"]
[null,null,"1\\1900"]
[null,null,"1\\1900"]
[null,null,"1\\1900"]
[null,null,"1\\1900"]
[null,null,"1\\1900"]
[null,null,"1\\1900"]
[null,null,"1\\1900"]
[null,null,"1\\1900"]
[null,null,"1\\1900"]
[null,null,"1\\1900"]
[null,null,"1\\1900"]
[null,null,"1\\1900"]
[null,null,"1\\1900"]
[null,null,"1\\1900"]
[null,null,"1\\1900"]
[null,null,"1\\1900"]
[null,null,"1\\1900"]
[null,null,"1\\1900"]
[null,null,"1\\1900"]
[null,null,"1\\1900"]
[null,null,"1\\1900"]
[null,null,"1\\1900"]
[null,null,"1\\1900"]
[null,null,"1\\1900"]
[null,null,"1\\1900"]
[null,null,"1\\1900"]
[null,null,"1\\1900"]
[null,null,"1\\1900"]
[null,null,"1\\1900"]
[null,null,"1\\1900"]
[null,null,"1\\1900"]
[null,null,"1\\1900"]
[null,null,"1\\1900"]
[null,null,"1\\1900"]
[null,null,"1\\1900"]
[null,null,"1\\1900"]
[null,null,"1\\1900"]
[null,null,"1\\1900"]
[null,null,{"$f":"MONTH(A191)&\"\\\"&YEAR(A191)","v":"1\\1900"}]

{"sheet":"Праздники","index":2,"n_rows":15,"n_cols":4,"rows_kept":15,"cut":false,"hidden":false,"merged":[]}
["Общие Праздники",{"$f":"TODAY()","v":"2021-12-07"},"Праздники","с формулой"]
["01.01.",{"$f":"LEFT(A2,6)&YEAR($B$1)","v":"01.01.2021"},"2022-01-01",{"$f":"DATE(YEAR(B2),MONTH(B2),DAY(B2))","v":"2021-01-01"}]
["02.01.",{"$f":"LEFT(A3,6)&YEAR($B$1)","v":"02.01.2021"},"2022-01-02","2021-01-02"]
["03.01.",{"$f":"LEFT(A4,6)&YEAR($B$1)","v":"03.01.2021"},"2022-01-03","2021-01-03"]
["04.01.","04.01.2021","2022-01-04","2021-01-04"]
["05.01.","05.01.2021","2022-01-05","2021-01-05"]
["06.01.","06.01.2021","2022-01-06","2021-01-06"]
["07.01.","07.01.2021","2022-01-07","2021-01-07"]
["08.01.","08.01.2021","2022-01-08","2021-01-08"]
["23.02.","23.02.2021","2022-02-23","2021-02-23"]
["08.03.","08.03.2021","2022-03-08","2021-03-08"]
["01.05.","01.05.2021","2022-05-01","2021-05-01"]
["09.05.","09.05.2021","2022-05-09","2021-05-09"]
["12.06.","12.06.2021","2022-06-12","2021-06-12"]
["04.11.","04.11.2021","2022-11-04",{"$f":"DATE(YEAR(B15),MONTH(B15),DAY(B15))","v":"2021-11-04"}]